Workbook

Sheet Publish IS (R)
A1: CONDENSED CONSOLIDATED INCOME STATEMENTS (Rand)
D2: 31 | E2: 31 | F2: 31 | I2: 31 | J2: 31 | M2: 30
D3: Quarter ended | I3: Nine months ended | M3: Year ended
D4: 31 March | E4: 31 December¹ | F4: 31 March¹ | I4: 31 March | J4: 31 March¹ | M4: 30 June¹
D5: 2012 | E5: 2011 | F5: 2011 | I5: 2012 | J5: 2011 | M5: 2011
A6: Figures in million | C6: Note | D6: (Unaudited) | E6: (Unaudited) | F6: (Unaudited) | I6: (Unaudited) | J6: (Unaudited) | M6: (Audited)
A9: Continuing operations
A11: Revenue | D11: 3222 | E11: 4439 | F11: 2761 | I11: 11235 | J11: 8443 | M11: 11596
A12: Cost of sales | C12: 2 | D12: -2721 | E12: -3116 | F12: -2414 | I12: -8811 | J12: -7473 | M12: -10699
A15: Production costs | D15: -2273 | E15: -2558 | F15: -1928 | I15: -7271 | J15: -6144 | M15: -8504
A16: Amortisation and depreciation | D16: -431 | E16: -497 | F16: -392 | I16: -1373 | J16: -1172 | M16: -1609
A17: Impairment of assets | D17: 0 | E17: 0 | F17: 0 | I17: 0 | J17: 0 | M17: -264
A18: Employment termination and restructuring costs | D18: -19 | E18: -17 | F18: -26 | I18: -70 | J18: -136 | M18: -136
A19: Other items | D19: 2 | E19: -44 | F19: -68 | I19: -97 | J19: -21 | M19: -186
A22: Gross profit | D22: 501 | E22: 1323 | F22: 347 | I22: 2424 | J22: 970 | M22: 897
A23: Corporate, administration and other expenditure | D23: -96 | E23: -85 | F23: -84 | I23: -261 | J23: -258 | M23: -322
A24: Social investment expenditure | D24: -22 | E24: -14 | F24: -27 | I24: -50 | J24: -66 | M24: -82
A25: Exploration expenditure | D25: -143 | E25: -99 | F25: -75 | I25: -339 | J25: -225 | M25: -324
A26: Profit on sale of property, plant and equipment | D26: 0 | E26: 2 | F26: 5 | I26: 28 | J26: 22 | M26: 27
A27: Other (expenses)/income - net | D27: -5 | E27: 11 | F27: -7 | I27: 24 | J27: -55 | M27: -21
A30: Operating profit | D30: 235 | E30: 1138 | F30: 159 | I30: 1826 | J30: 388 | M30: 175
A31: Loss from associates | D31: 0 | E31: 0 | F31: -24 | I31: 0 | J31: -51 | M31: -51
A32: Reversal of impairment/(impairment) of investment in associate
C33: 3 | D33: 6 | E33: 2 | F33: -160 | I33: 56 | J33: -160 | M33: -142
A34: Net gain on financial instruments | D34: 36 | E34: 61 | F34: 3 | I34: 73 | J34: 108 | M34: 129
A35: Gain on farm-in option | D35: 0 | E35: 0 | F35: 0 | I35: 0 | J35: 273 | M35: 273
A36: Investment income | D36: 25 | E36: 22 | F36: 62 | I36: 64 | J36: 110 | M36: 133
A37: Finance cost | D37: -65 | E37: -80 | F37: -63 | I37: -214 | J37: -185 | M37: -268
A40: Profit/(loss) before taxation | D40: 237 | E40: 1143 | F40: -23 | I40: 1805 | J40: 483 | M40: 249
A41: Taxation | D41: 636 | E41: -256 | F41: 299 | I41: 323 | J41: 250 | M41: 387
A44: Normal taxation | D44: -16 | E44: -60 | F44: -5 | I44: -115 | J44: -26 | M44: -27
A45: Deferred taxation | C45: 4 | D45: 652 | E45: -196 | F45: 304 | I45: 438 | J45: 276 | M45: 414
A48: Net profit from continuing operations | D48: 873 | E48: 887 | F48: 276 | I48: 2128 | J48: 733 | M48: 636
A51: Discontinued operations
A53: Profit/(loss) from discontinued operations | C53: 3 | D53: 141 | E53: 159 | F53: -38 | I53: 410 | J53: -74 | M53: -19
A56: Net profit for the period | D56: 1014 | E56: 1046 | F56: 238 | I56: 2538 | J56: 659 | M56: 617
A59: Attributable to:
A60: Owners of the parent | D60: 1014 | E60: 1046 | F60: 238 | I60: 2538 | J60: 659 | M60: 617
A61: Non-controlling interest | D61: 0 | E61: 0 | F61: 0 | I61: 0 | J61: 0 | M61: 0
A64: Earnings per ordinary share (cents) | C64: 5
A66: Earnings from continuing operations | D66: 202 | E66: 206 | F66: 64 | I66: 494 | J66: 171 | M66: 148
A67: Earnings/(loss) from discontinued operations | D67: 33 | E67: 37 | F67: -9 | I67: 95 | J67: -17 | M67: -4
A70: Total earnings | D70: 235 | E70: 243 | F70: 55 | I70: 589 | J70: 154 | M70: 144
A73: Diluted earnings per ordinary share (cents) | C73: 5
A75: Earnings from continuing operations | D75: 202 | E75: 205 | F75: 64 | I75: 492 | J75: 171 | M75: 148
A76: Earnings/(loss) from discontinued operations | D76: 32 | E76: 37 | F76: -9 | I76: 95 | J76: -17 | M76: -4
A79: Total diluted earnings | D79: 234 | E79: 242 | F79: 55 | I79: 587 | J79: 154 | M79: 144
A82: ¹ The comparative figures are re-presented due to Evander being reclassified as a discontinued operation. See note 3 in this regard.
A83: The accompanying notes are an integral part of these condensed consolidated financial statements.
A89: Test | D89: 0 | E89: 0 | F89: 0 | G89: 2538 | H89: 659 | I89: 0 | J89: 0 | L89: 0 | M89: 0 | N89: 159

Sheet Publish Com IS (R)
A1: CONDENSED CONSOLIDATED STATEMENTS OF COMPREHENSIVE INCOME (Rand)
C4: Quarter ended | G4: Nine months ended | J4: Year ended
C5: 31 March | D5: 31 December | E5: 31 March | G5: 31 March | H5: 31 March | J5: 30 June
C6: 2012 | D6: 2011 | E6: 2011 | G6: 2012 | H6: 2011 | J6: 2011
A7: Figures in million | C7: (Unaudited) | D7: (Unaudited) | E7: (Unaudited) | G7: (Unaudited) | H7: (Unaudited) | J7: (Audited)
A11: Net profit for the period | C11: 1014 | D11: 1046 | E11: 238 | G11: 2538 | H11: 659 | J11: 617
A12: Other comprehensive (loss)/income for the period, net of income tax | C12: -153 | D12: 179 | E12: 6 | G12: 981 | H12: -50 | J12: 368
A15: Foreign exchange translation | C15: -157 | D15: 212 | E15: 22 | G15: 979 | H15: -3 | J15: 470
A16: Gain/(loss) on fair value movement of available-for-sale investments | C16: 4 | D16: -33 | E16: -16 | G16: 2 | H16: -47 | J16: -102
A19: Total comprehensive income for the period | C19: 861 | D19: 1225 | E19: 244 | G19: 3519 | H19: 609 | J19: 985
A22: Attributable to:
A23: Owners of the parent | C23: 861 | D23: 1225 | E23: 244 | G23: 3519 | H23: 609 | J23: 985
A24: Non-controlling interest | C24: 0 | D24: 0 | E24: 0 | G24: 0 | H24: 0 | J24: 0
A27: The accompanying notes are an integral part of these condensed consolidated financial statements.
A62: The preparation of the unaudited financial statements for the nine months ended 31 March 2012 have been prepared by Harmony Gold Mining Limited's corporate reporting team headed by Mr Herman Perry. This process was supervised by the financial director, Mr Frank Abbott and approved by the Board of Harmony Gold Mining Company Limited. These financial statements have not been audited or independently reviewed.

Sheet Publish BS (R)
A1: CONDENSED CONSOLIDATED BALANCE SHEETS (Rand)
C2: 31 | D2: 31 | E2: 30 | F2: 31
C4: At | D4: At | E4: At | F4: At
C5: 31 March | D5: 31 December | E5: 30 June | F5: 31 March
C6: 2012 | D6: 2011 | E6: 2011 | F6: 2011
A7: Figures in million | B7: Note | C7: (Unaudited) | E7: (Audited) | F7: (Unaudited)
A10: ASSETS
A12: Non-current assets
A14: Property, plant and equipment | C14: 31949 | D14: 32830 | E14: 31221 | F14: 30557
A15: Intangible assets | C15: 2194 | D15: 2185 | E15: 2170 | F15: 2188
A16: Restricted cash | C16: 30 | D16: 31 | E16: 31 | F16: 27
A17: Restricted investments | C17: 1808 | D17: 1929 | E17: 1883 | F17: 1866
A18: Deferred tax assets | C18: 1042 | D18: 1179 | E18: 1149 | F18: 2310
A19: Investments in financial assets | C19: 187 | D19: 183 | E19: 185 | F19: 236
A20: Inventories | C20: 165 | D20: 169 | E20: 172 | F20: 227
A21: Trade and other receivables | C21: 35 | D21: 28 | E21: 23 | F21: 69
A24: Total non-current assets | C24: 37410 | D24: 38534 | E24: 36834 | F24: 37480
A28: Current assets
A30: Inventories | C30: 1086 | D30: 990 | E30: 837 | F30: 954
A31: Trade and other receivables | C31: 1259 | D31: 1131 | E31: 1073 | F31: 1111
A32: Income and mining taxes | C32: 142 | D32: 194 | E32: 139 | F32: 119
A33: Cash and cash equivalents | C33: 1427 | D33: 1205 | E33: 693 | F33: 656
C36: 3914 | D36: 3520 | E36: 2742 | F36: 2840
A37: Assets of disposal groups classified as held for sale | B37: 3 | C37: 1326 | D37: 315 | E37: 268 | F37: 174
A40: Total current assets | C40: 5240 | D40: 3835 | E40: 3010 | F40: 3014
A44: Total assets | C44: 42650 | D44: 42369 | E44: 39844 | F44: 40494
A48: EQYUITY AND LIABILITIES
A50: Share capital and reserves
A52: Share capital | C52: 28329 | D52: 28326 | E52: 28305 | F52: 28290
A53: Other reserves | C53: 1815 | D53: 1945 | E53: 762 | F53: 299
A54: Retained earnings | C54: 3200 | D54: 2359 | E54: 1093 | F54: 1135
A57: Total equity | C57: 33344 | D57: 32630 | E57: 30160 | F57: 29724
A61: Non-current liabilities
A63: Deferred tax liabilities | C63: 3568 | D63: 4452 | E63: 4216 | F63: 5623
A64: Provision for environmental rehabilitation | C64: 1905 | D64: 2092 | E64: 1971 | F64: 1785
A65: Retirement benefit obligation and other provisions | C65: 181 | D65: 177 | E65: 174 | F65: 179
A66: Borrowings | B66: 6 | C66: 1277 | D66: 991 | E66: 1229 | F66: 1487
A69: Total non-current liabilities | C69: 6931 | D69: 7712 | E69: 7590 | F69: 9074
A73: Current liabilities
A75: Borrowings | B75: 6 | C75: 318 | D75: 323 | E75: 330 | F75: 336
A76: Income and mining taxes | C76: 7 | D76: 3 | E76: 2 | F76: 17
A77: Trade and other payables | C77: 1543 | D77: 1684 | E77: 1746 | F77: 1343
C80: 1868 | D80: 2010 | E80: 2078 | F80: 1696
A81: Liabilities of disposal groups classified as held for sale | B81: 3 | C81: 507 | D81: 17 | E81: 16 | F81: 0
A84: Total current liabilities | C84: 2375 | D84: 2027 | E84: 2094 | F84: 1696
A88: Total equity and liabilities | C88: 42650 | D88: 42369 | E88: 39844 | F88: 40494
A91: The accompanying notes are an integral part of these condensed consolidated financial statements.

Sheet Publish CIE (R)
A1: CONDENSED CONSOLIDATED STATEMENTS OF CHANGES IN EQUITY (Rand) (Unaudited)
A2: for the nine months ended 31 March 2012
A5: Figures in million | C5: Share capital | D5: Other reserves | E5: Retained earnings | F5: Total
A8: Balance - 30 June 2011 | C8: 28305 | D8: 762 | E8: 1093 | F8: 30160
A9: Issue of shares | C9: 24 | D9: 0 | E9: 0 | F9: 24
A10: Share-based payments | C10: 0 | D10: 72 | E10: 0 | F10: 72
A11: Net profit for the period | C11: 0 | D11: 0 | E11: 2538 | F11: 2538
A12: Other comprehensive income for the period | C12: 0 | D12: 981 | E12: 0 | F12: 981
A13: Dividends paid | C13: 0 | D13: 0 | E13: -431 | F13: -431
A16: Balance - 31 March 2012 | C16: 28329 | D16: 1815 | E16: 3200 | F16: 33344
A19: Balance - 30 June 2010 | C19: 28261 | D19: 258 | E19: 690 | F19: 29209
A20: Issue of shares | C20: 29 | D20: 0 | E20: 0 | F20: 29
A21: Share-based payments | C21: 0 | D21: 91 | E21: 0 | F21: 91
A22: Net profit for the period | C22: 0 | D22: 0 | E22: 659 | F22: 659
A23: Other comprehensive loss for the period | C23: 0 | D23: -50 | E23: 0 | F23: -50
A24: Dividends paid | C24: 0 | D24: 0 | E24: -214 | F24: -214
A27: Balance - 31 March 2011 | C27: 28290 | D27: 299 | E27: 1135 | F27: 29724
A30: The accompanying notes are an integral part of these condensed consolidated financial statements.

Sheet Publish - Cash flow (R)
A1: CONDENSED CONSOLIDATED CASH FLOW STATEMENTS (Rand)
D4: Quarter ended | H4: Nine months ended | K4: Year ended
D5: 31 March | E5: 31 December | F5: 31 March | H5: 31 March | I5: 31 March | K5: 30 June
D6: 2012 | E6: 2011 | F6: 2011 | H6: 2012 | I6: 2011 | K6: 2011
A7: Figures in million | D7: (Unaudited) | E7: (Unaudited) | F7: (Unaudited) | H7: (Unaudited) | I7: (Unaudited) | K7: (Audited)
A11: Cash flow from operating activities
A12: Cash generated by operations | D12: 682 | E12: 1566 | F12: 213 | H12: 3340 | I12: 1366 | K12: 2418
A13: Interest and dividends received | D13: 32 | E13: 12 | F13: 64 | H13: 60 | I13: 116 | K13: 140
A14: Interest paid | D14: -26 | E14: -36 | F14: -34 | H14: -103 | I14: -99 | K14: -134
A15: Income and mining taxes refunded/(paid) | D15: 35 | E15: -149 | F15: 8 | H15: -114 | I15: -26 | K15: -45
A18: Cash generated by operating activities | D18: 723 | E18: 1393 | F18: 251 | H18: 3183 | I18: 1357 | K18: 2379
A21: Cash flow from investing activities
A22: Decreased in restricted cash | D22: 0 | E22: 0 | F22: 0 | H22: 0 | I22: 120 | K22: 116
A23: Proceeds on disposal of investment in subsidiary | D23: 0 | E23: 0 | F23: 0 | H23: 0 | I23: 229 | K23: 229
A24: Proceeds on disposal of investment in associate | D24: 193 | E24: 0 | F24: 0 | H24: 193 | I24: 0 | K24: 0
A25: Proceeds on disposal of available-for-sale financial assets | D25: 0 | E25: 0 | F25: 0 | H25: 0 | I25: 1 | K25: 16
A26: Pre-payment for Evander 6 and Twistdraai transaction | D26: 0 | E26: 0 | F26: 0 | H26: 0 | I26: 0 | K26: 100
A27: Other investing activities | D27: -33 | E27: 3 | F27: 16 | H27: -30 | I27: 20 | K27: -5
A28: Net additions to property, plant and equipment | D28: -740 | E28: -779 | F28: -687 | H28: -2187 | I28: -2281 | K28: -3110
H29: 0
A31: Cash utilised by investing activities | D31: -580 | E31: -776 | F31: -671 | G31: 0 | H31: -2024 | I31: -1911 | J31: 0 | K31: -2654
A34: Cash flow from financing activities
A35: Borrowings raised | D35: 302 | E35: 0 | F35: 250 | H35: 1101 | I35: 775 | K35: 925
A36: Borrowings repaid | D36: -17 | E36: -718 | F36: -17 | H36: -1087 | I36: -130 | K36: -546
A37: Ordinary shares issued - net of expenses | D37: 3 | E37: 11 | F37: 13 | H37: 23 | I37: 29 | K37: 44
A38: Dividends paid | D38: -173 | E38: 0 | F38: 0 | H38: -431 | I38: -214 | K38: -214
A41: Cash generated/(utilised) by financing activities | D41: 115 | E41: -707 | F41: 246 | H41: -394 | I41: 460 | K41: 209
A44: Foreign currency translation adjustments | D44: -36 | E44: -30 | F44: -7 | H44: -31 | I44: -20 | K44: -11
F45: -7
A47: Net increase/(decrease) in cash and cash equivalents | D47: 222 | E47: -120 | F47: -181 | H47: 734 | I47: -114 | K47: -77
A48: Cash and cash equivalents - beginning of period | D48: 1205 | E48: 1325 | F48: 837 | H48: 693 | I48: 770 | K48: 770
A51: Cash and cash equivalents - end of period | D51: 1427 | E51: 1205 | F51: 656 | H51: 1427 | I51: 656 | K51: 693
A54: The accompanying notes are an integral part of these condensed consolidated financial statements.

Sheet Publish - Notes to result
A1: NOTES TO THE CONDENSED CONSOLIDATED FINANCIAL STATEMENTS
A2: for the period ended 31 March 2012 (Rand)
A5: 1 | B5: Accounting policies
B7: Basis of accounting
B8: The condensed consolidated financial statements for the nine months ended 31 March 2012 have been prepared in accordance with IAS 34, Interim Financial Reporting, JSE Listings Requirements and in the manner required by the Companies Act of South Africa. They should be read in conjunction with the annual financial statements for the year ended 30 June 2011, which have been prepared in accordance with International Financial Reporting Standards as issued by the International Accounting Standards Board (IFRS). The accounting policies are consistent with those described in the annual financial statements, except for the adoption of applicable revised and/or new standards issued by the International Accounting Standards Board.
A16: 2 | B16: Cost of sales
J18: Quarter ended | O18: Nine months ended | S18: Year ended
J19: 31 March | K19: 31 December¹ | L19: 31 March¹ | O19: 31 March | P19: 31 March¹ | S19: 30 June¹
J20: 2012 | K20: 2011 | L20: 2011 | O20: 2012 | P20: 2011 | S20: 2011
B21: Figures in million | J21: (Unaudited) | K21: (Unaudited) | L21: (Unaudited) | O21: (Unaudited) | P21: (Unaudited) | S21: (Audited)
B24: Production costs - excluding royalty | J24: 2231 | K24: 2499 | L24: 1897 | O24: 7138 | P24: 6059 | Q24: -97 | S24: 8408
B25: Royalty expense | J25: 42 | K25: 59 | L25: 31 | O25: 133 | P25: 85 | Q25: 97 | S25: 96
B26: Amortisation and depreciation | J26: 431 | K26: 497 | L26: 392 | O26: 1373 | P26: 1172 | Q26: 0 | S26: 1609
B27: Impairment of assets | J27: 0 | K27: 0 | L27: 0 | O27: 0 | P27: 0 | Q27: 0 | S27: 264
B28: Rehabilitation expenditure² | J28: -43 | K28: 1 | L28: 5 | O28: -37 | P28: 13 | Q28: 0 | S28: 43
B29: Care and maintenance cost of restructured shafts | J29: 20 | K29: 20 | L29: 32 | O29: 69 | P29: 82 | Q29: 0 | S29: 117
B30: Employment termination and restructuring costs³ | J30: 19 | K30: 17 | L30: 26 | O30: 70 | P30: 136 | Q30: 0 | S30: 136
B31: Share-based payments | J31: 21 | K31: 23 | L31: 26 | O31: 66 | P31: 82 | Q31: 0 | S31: 125
B32: Other | J32: 0 | K32: 0 | L32: 5 | O32: -1 | P32: -156 | Q32: 0 | S32: -99
B34: The currency conversion closing rates for the nine months ended: March 2010: US$1 = R7.31 (March 2009: US$1 = R9.48)
B35: Total cost of sales | J35: 2721 | K35: 3116 | L35: 2414 | O35: 8811 | P35: 7473 | S35: 10699
B38: ¹ | D38: The comparative figures are re-presented due to Evander being reclassified as a discontinued operation. See note 3 in this regard.
B39: ² | D39: The credit in the current quarter relates to a change in estimate on areas where rehabilitation work has been performed.
B40: ³ | C40: The amounts for the 2012 financial year relates to restructuring at the Bambanani shaft.
A42: 3 | B42: Disposal groups classified as held for sale and discontinued operations
B44: Investment in associate
B45: Investment in Rand Uranium
B47: The investment in Rand Uranium (Proprietary) Limited (Rand Uranium) was classified as held for sale in the March 2011 quarter following a decision to sell it. The transaction with Gold One International Limited (Gold One) was concluded on 6 January 2012, with the first payment of US$24 million (R193 million) being received on that day. The outstanding amount as at 31 March 2012 was R108 million. Subsequent to the March 2012 quarter-end, additional payments were received from Gold One for the sale. For further information refer to note 8.
B53: Evander Gold Mines Limited
B55: The assets and liabilities related to Evander Gold Mines Limited (Evander), a wholly-owned subsidiary of Harmony Gold Mining Company Limited (Harmony), have been classified as held for sale following signing of the sale of share and claims agreement on 30 January 2012 with Pan African Resources plc and Witwatersrand Consolidated Gold Resources Limited (the Consortium). The disposal will be for an aggregate purchase consideration of R1.7 billion, excluding the proceeds of the Taung Gold Limited transaction and less certain distributions made by Evander to Harmony between 1 April 2012 and the close of the transaction.
B61: The transaction is subject to, among others, the following conditions precedent:
B62: ● the Consortium raising the required funding comprising of debt and/or equity;
B63: ● each of the Consortium members obtaining the requisite shareholder approvals for the acquisition; and
B64: ● obtaining all relevant regulatory approvals.
B66: The operation also meets the requirements to be classified as a discontinued operations. The comparative figures have in the income statement been re-presented as a result.
A69: 4 | B69: Deferred taxation
B71: The deferred tax for the March 2012 quarter includes a tax credit of R605 million, relating to a change in the gold mining tax rate formula in South Africa. Previously some of our subsidiaries were exempt from paying Secondary Tax on Companies when declaring a dividend, but had to pay a higher mining tax rate. With the introduction of Dividend Tax, the higher gold mining tax rate formula was repealed resulting in lower income tax and deferred tax rates. The affected subsidiaries are Randfontein, Freegold, Evander and Kalgold.
A76: 5 | B76: Earnings and net asset value per share
J78: Quarter ended | O78: Nine months ended | S78: Year ended
J79: 31 March | K79: 31 December¹ | L79: 31 March¹ | O79: 31 March | P79: 31 March¹ | S79: 30 June¹
J80: 2012 | K80: 2011 | L80: 2011 | O80: 2012 | P80: 2011 | S80: 2011
J81: (Unaudited) | K81: (Unaudited) | L81: (Unaudited) | O81: (Unaudited) | P81: (Unaudited) | S81: (Audited)
B84: Weighted average number of shares (million) | J84: 431.335664 | K84: 430.486716 | L84: 429.527626 | O84: 430.6091085 | P84: 429.091705 | S84: 429.310123
B85: Weighted average number of diluted shares (million) | J85: 432.7903387 | K85: 432.3 | L85: 430.7034568 | O85: 432.1921028 | P85: 430.1521719 | S85: 430.4200675
B87: Total earnings per share (cents):
B89: Basic earnings | J89: 235 | K89: 243 | L89: 55 | O89: 589 | P89: 154 | S89: 144
B90: Diluted earnings | J90: 234 | K90: 242 | L90: 55 | O90: 587 | P90: 154 | S90: 144
B91: Headline earnings | J91: 234 | K91: 242 | L91: 91 | O91: 571 | P91: 192 | S91: 223
B94: - from continuing operations | J94: 201 | K94: 205 | L94: 100 | O94: 477 | P94: 214 | S94: 232
B95: - from discontinued operations | J95: 33 | K95: 37 | L95: -9 | O95: 94 | P95: -22 | S95: -9
B98: Diluted headline earnings | J98: 233 | K98: 241 | L98: 91 | O98: 569 | P98: 192 | S98: 222
L100: 69
B101: - from continuing operations | J101: 200 | K101: 204 | L101: 100 | O101: 475 | P101: 214 | S101: 231
B102: - from discontinued operations | J102: 33 | K102: 37 | L102: -9 | O102: 94 | P102: -22 | S102: -9
B105: Figures in million
B108: Reconciliation of headline earnings:
B110: Continuing operations
B112: Net profit | J112: 873 | K112: 887 | L112: 276 | O112: 2128 | P112: 733 | S112: 636
B114: Adjusted for:
B115: (Reversal of impairment)/impairment of investment in associate* | J115: -6 | K115: -2 | L115: 160 | O115: -55 | P115: 160 | S115: 142.0236617
B116: Foreign exchange loss reclassified from other comprehensive income* | J116: 0 | K116: 0 | L116: 0 | O116: 0 | P116: 47 | S116: 47
B117: Impairment of assets | J117: 0 | K117: 0 | L117: 0 | O117: 0 | P117: 0 | S117: 264
B118: Taxation effect on impairment of assets | J118: 0 | K118: 0 | L118: 0 | O118: 0 | P118: 0 | S118: -66
B119: Other adjustments | J119: 0 | K119: -3 | L119: -9 | M119: 0 | N119: 0 | O119: -28 | P119: -26 | Q119: 0 | R119: 0 | S119: -34
B120: Profit on sale of property, plant and equipment | J120: 0 | K120: -3 | L120: -6 | O120: -28 | P120: -22 | S120: -27
B121: Net gain on financial instruments | J121: 0 | K121: 0 | L121: -3 | O121: 0 | P121: -4 | S121: -7
B122: Taxation effect on other adjustments | J122: -1 | K122: 1 | L122: 2 | M122: 0 | N122: 0 | O122: 7 | P122: 7 | Q122: 0 | R122: 0 | S122: 8
B123: Taxation effect of profit on sale of property, plant and equipment | J123: -1 | K123: 1 | L123: 1 | O123: 7 | P123: 6 | S123: 6
B124: Taxation effect of net gain on financial instruments | J124: 0 | K124: 0 | L124: 1 | O124: 0 | P124: 1 | S124: 2
J125: 0
B127: Headline earnings | J127: 866 | K127: 883 | L127: 429 | M127: 0 | N127: 0 | O127: 2052 | P127: 921 | Q127: 0 | R127: 0 | S127: 997.0236617
B130: Discontinued operations
B132: Net profit/(loss) | J132: 141 | K132: 159 | L132: -38 | O132: 410 | P132: -74 | S132: -19
B134: Adjusted for:
B135: Profit on sale of investment in subsidiary | J135: 0 | K135: 0 | L135: 0 | O135: 0 | P135: -138 | S135: -54
B136: Taxation effect of profit on sale of investment in subsidiary | J136: 0 | K136: 0 | L136: 0 | O136: 0 | P136: 34 | S136: 34
B137: Profit on sale of property, plant and equipment | J137: 0 | K137: -1 | L137: -2 | O137: -2 | P137: -2 | S137: -2
B138: Taxation effect of profit on sale of property, plant and equipment | J138: 0 | K138: 0 | L138: 1 | O138: 0 | P138: 1 | S138: 1
B139: Foreign exchange loss reclassified from other comprehensive income* | J139: 0 | K139: 0 | L139: 0 | O139: 0 | P139: 84 | S139: 0
B142: Headline earnings/(loss) | J142: 141 | K142: 158 | L142: -39 | O142: 408 | P142: -95 | S142: -40
B145: Total headline earnings | J145: 1007 | K145: 1041 | L145: 390 | O145: 2460 | P145: 826 | S145: 957.0236617
B148: ¹ | C148: The comparative figures are re-presented due to Evander being reclassified as a discontinued operation. See note 3 in this regard.
B149: * | C149: There is no taxation effect on these items.
B150: Net asset value per share
L152: At | O152: At | P152: At | S152: At
L153: 31 March | O153: 31 December | P153: 30 June | S153: 31 March
L154: 2012 | O154: 2011 | P154: 2011 | S154: 2011
L155: (Unaudited) | P155: (Audited) | S155: (Unaudited)
B158: Number of shares in issue | L158: 431471444 | O158: 431312677 | P158: 430084628 | S158: 429807371
B159: Net asset value per share (cents) | L159: 7727.973766 | O159: 7565.27729 | P159: 7012.573349 | S159: 6915.656177
A162: 6 | B162: Borrowings
B164: The Nedbank revolving credit facility was repaid in full during the December 2011 quarter. The full R850 million facility is available until December 2013. The balance on Nedbank term facilities at the end of March 2012 quarter is R915 million.
B167: In addition to the US$50 million drawn during the September 2011 quarter, a further US$40 million of the US$300 million syndicated revolving credit facility was drawn during the March 2012 quarter, with US$210 million still available. The facility is repayable by August 2015 and attracts interest at LIBOR plus 260 basis points, which is payable quarterly.
A171: 7 | B171: Commitments and contingencies
L173: At | O173: At | P173: At | S173: At
L174: 31 March | O174: 31 December | P174: 30 June | Q174: 0 | R174: 0 | S174: 31 March
L175: 2012 | O175: 2011 | P175: 2011 | Q175: 0 | R175: 0 | S175: 2011
B176: Figures in million | L176: (Unaudited) | P176: (Audited) | S176: (Unaudited)
B179: Capital expenditure commitments:
B180: Contracts for capital expenditure | L180: 391 | O180: 291 | P180: 194 | S180: 191
B181: Authorised by the directors but not contracted for | L181: 3032 | O181: 3373 | P181: 1504 | S181: 2175
L184: 3423 | O184: 3664 | P184: 1698 | S184: 2366
B187: This expenditure will be financed from existing resources and, where appropriate, borrowings.
B189: Contingent liability
B191: For a detailed disclosure on contingent liabilities refer to Harmony's annual report for the financial year ended 30 June 2011, available on the group's website (www.harmony.co.za). There were no significant changes in contingencies since 30 June 2011, except as discussed below.
B195: Harmony reached a mutually acceptable settlement with the plaintiff class and this settlement was found to be fair and reasonable and was approved by the United States District Court in November 2011. A single class member has filed an appeal of the District Court’s order approving the settlement. That appeal is currently pending in the United States Court of Appeals for the Second Circuit. The settlement amount has been paid into escrow by the company’s insurers and will be distributed to the plaintiffs once the appeal has been finalised.
A201: 8 | B201: Subsequent events
B203: During April 2012, an amount of R86 million was received from Gold One relating to the sale of shares in Rand Uranium. An additional R25 million is being held in an escrow account for a period of 12 months.
A206: 9 | B206: Segment report
B208: The segment report follows on the page XX.
A210: 10 | B210: Reconciliation of segment information to consolidated income statements
P212: Nine months ended
P213: 31 March | S213: 31 March¹
P214: 2012 | S214: 2011
B215: Figures in million | P215: (Unaudited) | Q215: (Unaudited) | R215: (Unaudited) | S215: (Unaudited)
B218: The "Reconciliation of segment information to consolidated income statement" line item in the segment report is broken down in the following elements, to give a better understanding of the differences between the income statement and segment report:
B223: Reconciliation of production profit to gross profit
B225: Total segment revenue | P225: 12341 | S225: 9023
B226: Total segment production costs | P226: -7834 | S226: -6649
B229: Production profit per segment report | P229: 4507 | S229: 2374
B230: Discontinued operations | P230: -543 | S230: -75
B233: Production profit profit from continuing operations | P233: 3964 | S233: 2299
B234: Cost of sales items, other than production costs and royalty expense | P234: -1540 | S234: -1329
B237: Gross profit as per income statements * | P237: 2424 | Q237: 0 | R237: 0 | S237: 970
B239: ¹ The comparative figures are re-presented due to Evander being reclassified as a discontinued operation. See note 3 in this regard.
B240: * The reconciliation was done up to the first recognisable line item on the income statement. The reconciliation will follow the income statement after that.
P244: 0 | Q244: 970 | R244: 0 | S244: 0

Sheet WS - Equity - 30 September 2010 (hidden)
F2: December 2010
F3: R ' 000
A5: Balance as at the beginning
A6: of the financial year | F6: =+F26 -> 29209547.69
A8: Currency translation adjustment
A9: and other | F9: =+J23 -> 
A11: Issue of share capital | F11: =J21+J22 -> 
A13: Net earnings | F13: =+J24 -> 
A15: ="Balance at the end of "&F2 -> Balance at the end of December 2010 | F15: =SUM(F6:F13) -> 
A19: Balance beginning of financial year represented by: | F19: June 2010 | H19: =F2 -> December 2010 | J19: Movement
A21: Share capital | F21: 214327.5897 | H21: =#REF! ->  | J21: =+H21-F21 -> 
A22: Share premium | F22: 28046591.78 | H22: =#REF! ->  | J22: =+H22-F22 -> 
A23: Other reserves | F23: 257567.9241 | H23: =#REF!+#REF! ->  | J23: =+H23-F23 -> 
A24: (Accumulated loss)/retained earnings | F24: 691060.4005 | H24: =#REF! ->  | J24: =+H24-F24 -> 
F26: =SUM(F21:F25) -> 29209547.69 | H26: =SUM(H21:H25) ->  | J26: =+H26-F26 -> 

Sheet Segment Report (R)
A1: NOTES TO THE GROUP FINANCIAL STATEMENTS
A2: for the nine months ended 31 March 2012
A5: Segment report (Rand/Metric) (Unaudited)
B7: Revenue | D7: Production cost | F7: Production profit/(loss) | H7: Capital expenditure | J7: Kilograms produced | L7: Tonnes milled
B8: 31 March | D8: 31 March | F8: 31 March | H8: 31 March | J8: 31 March | L8: 31 March
B9: 2012 | C9: 2011 | D9: 2012 | E9: 2011 | F9: 2012 | G9: 2011 | H9: 2012 | I9: 2011 | J9: 2012 | K9: 2011 | L9: 2012 | M9: 2011
B10: R million | D10: R million | F10: R million | H10: R million | J10: kg | L10: t'000
A13: Continuing operations
A14: South Africa
A15: Underground
A16: Bambanani | B16: 421 | C16: 671 | D16: 480 | E16: 603 | F16: -59 | G16: 68 | H16: 212 | I16: 231 | J16: 1068 | K16: 2289 | L16: 163 | M16: 314
A17: Doornkop | B17: 939 | C17: 530 | D17: 626 | E17: 418 | F17: 313 | G17: 112 | H17: 201 | I17: 221 | J17: 2263 | K17: 1755 | L17: 667 | M17: 484
A18: Joel | B18: 773 | C18: 295 | D18: 406 | E18: 293 | F18: 367 | G18: 2 | H18: 42 | I18: 55 | J18: 1873 | K18: 1001 | L18: 410 | M18: 286
A19: Kusasalethu | B19: 1678 | C19: 1252 | D19: 1072 | E19: 976 | F19: 606 | G19: 276 | H19: 312 | I19: 274 | J19: 4043 | K19: 4023 | L19: 860 | M19: 794
A20: Masimong | B20: 1032 | C20: 1045 | D20: 635 | E20: 571 | F20: 397 | G20: 474 | H20: 166 | I20: 129 | J20: 2466 | K20: 3453 | L20: 702 | M20: 678
A21: Phakisa | B21: 753 | C21: 390 | D21: 585 | E21: 337 | F21: 168 | G21: 53 | H21: 227 | I21: 276 | J21: 1800 | K21: 1290 | L21: 368 | M21: 281
A22: Target | B22: 1497 | C22: 732 | D22: 916 | E22: 520 | F22: 581 | G22: 212 | H22: 245 | I22: 348 | J22: 3655 | K22: 3017 | L22: 844 | M22: 562
A23: Tshepong | B23: 1694 | C23: 1508 | D23: 935 | E23: 852 | F23: 759 | G23: 656 | H23: 199 | I23: 201 | J23: 4035 | K23: 4995 | L23: 916 | M23: 1016
A24: Virginia | B24: 479 | C24: 539 | D24: 366 | E24: 451 | F24: 113 | G24: 88 | H24: 51 | I24: 63 | J24: 1134 | K24: 1793 | L24: 282 | M24: 470
F25: 0 | G25: 0
A26: Surface
A27: All other surface operations | B27: 1074 | C27: 763 | D27: 678 | E27: 606 | F27: 396 | G27: 157 | H27: 96 | I27: 93 | J27: 2569 | K27: 2581 | L27: 6997 | M27: 7640
A30: Total South Africa | B30: 10340 | C30: 7725 | D30: 6699 | E30: 5627 | F30: 3641 | G30: 2098 | H30: 1751 | I30: 1891 | J30: 24906 | K30: 26197 | L30: 12209 | M30: 12525
A33: International
A34: Hidden Valley | B34: 895 | C34: 718 | D34: 572 | E34: 517 | F34: 323 | G34: 201 | H34: 175 | I34: 212 | J34: 2098 | K34: 2292 | L34: 1307 | M34: 1259
A35: Other | B35: 0 | C35: 0 | D35: 0 | E35: 0 | F35: 0 | G35: 0 | H35: 192 | I35: 0 | J35: 0 | K35: 0 | L35: 0 | M35: 0
A38: Total international | B38: 895 | C38: 718 | D38: 572 | E38: 517 | F38: 323 | G38: 201 | H38: 367 | I38: 212 | J38: 2098 | K38: 2292 | L38: 1307 | M38: 1259
A41: Total continuing operations | B41: 11235 | C41: 8443 | D41: 7271 | E41: 6144 | F41: 3964 | G41: 2299 | H41: 2118 | I41: 2103 | J41: 27004 | K41: 28489 | L41: 13516 | M41: 13784
A44: Discontinued operations
A45: Evander | B45: 1106 | C45: 580 | D45: 563 | E45: 505 | F45: 543 | G45: 75 | H45: 131 | I45: 146 | J45: 2674 | K45: 1894 | L45: 491 | M45: 635
A48: Total discontinued operations | B48: 1106 | C48: 580 | D48: 563 | E48: 505 | F48: 543 | G48: 75 | H48: 131 | I48: 146 | J48: 2674 | K48: 1894 | L48: 491 | M48: 635
A51: Total operations | B51: 12341 | C51: 9023 | D51: 7834 | E51: 6649 | F51: 4507 | G51: 2374 | H51: 2249 | I51: 2249 | J51: 29678 | K51: 30383 | L51: 14007 | M51: 14419
A54: Reconciliation of the segment information to the consolidated income statement (refer to note 10)
B56: -1106 | C56: -580 | D56: -563 | E56: -505
B59: 11235 | C59: 8443 | D59: 7271 | E59: 6144

Sheet Publish IS (US$)
A1: CONDENSED CONSOLIDATED INCOME STATEMENTS (US$)
A2: (Convenience translation)
E4: 31 | F4: 31 | I4: 31 | J4: 31 | M4: 30
D5: Quarter ended | I5: Nine months ended | M5: Year ended
D6: 31 March | E6: 31 December¹ | F6: 31 March¹ | I6: 31 March | J6: 31 March¹ | M6: 30 June¹
D7: 2012 | E7: 2011 | F7: 2011 | I7: 2012 | J7: 2011 | M7: 2011
A8: Figures in million | D8: (Unaudited) | E8: (Unaudited) | F8: (Unaudited) | I8: (Unaudited) | J8: (Unaudited) | M8: (Audited)
A11: Continuing operations
A13: Revenue | D13: 417 | E13: 548 | F13: 395 | I13: 1469 | J13: 1196 | M13: 1659
A14: Cost of sales | D14: -351 | E14: -385 | F14: -345 | I14: -1151 | J14: -1059 | M14: -1533
A17: Production costs | D17: -294 | E17: -316 | F17: -276 | I17: -950 | J17: -870 | M17: -1218
A18: Amortisation and depreciation | D18: -55 | E18: -61 | F18: -55 | I18: -179 | J18: -166 | M18: -230
A19: Impairment of assets | D19: 0 | E19: 0 | F19: 0 | I19: 0 | J19: 0 | M19: -39
A20: Employment termination and restructuring costs | D20: -2 | E20: -2 | F20: -4 | I20: -9 | J20: -19 | M20: -20
A21: Other items | D21: 0 | E21: -6 | F21: -10 | I21: -13 | J21: -4 | M21: -26
A24: Gross profit | D24: 66 | E24: 163 | F24: 50 | I24: 318 | J24: 137 | M24: 126
A25: Corporate, administration and other expenditure | D25: -13 | E25: -10 | F25: -12 | I25: -34 | J25: -37 | M25: -46
A26: Social investment expenditure | D26: -3 | E26: -2 | F26: -4 | I26: -7 | J26: -9 | M26: -12
A27: Exploration expenditure | D27: -18 | E27: -12 | F27: -11 | I27: -44 | J27: -32 | M27: -46
A28: Profit on sale of property, plant and equipment | D28: 0 | E28: 0 | F28: 1 | I28: 4 | J28: 3 | M28: 4
A29: Other (expenses)/income - net | D29: -1 | E29: 1 | F29: -1 | I29: 3 | J29: -8 | M29: -3
A32: Operating profit | D32: 31 | E32: 140 | F32: 23 | I32: 240 | J32: 54 | M32: 23
A33: Loss from associates | D33: 0 | E33: 0 | F33: -3 | I33: 0 | J33: -7 | M33: -7
A34: Reversal of impairment/(impairment) of investment in associate | D34: 1 | E34: 0 | F34: -23 | I34: 7 | J34: -23 | M34: -20
A35: Net gain on financial instruments | D35: 5 | E35: 8 | F35: 0 | I35: 10 | J35: 15 | M35: 18
A36: Gain on farm-in option | D36: 0 | E36: 0 | F36: 0 | I36: 0 | J36: 39 | M36: 38
A37: Investment income | D37: 3 | E37: 3 | F37: 9 | I37: 8 | J37: 16 | M37: 19
A38: Finance cost | D38: -8 | E38: -10 | F38: -9 | I38: -28 | J38: -26 | M38: -38
A41: Profit before taxation | D41: 32 | E41: 141 | F41: -3 | I41: 237 | J41: 68 | M41: 33
A42: Taxation | D42: 82 | E42: -31 | F42: 42 | I42: 42 | J42: 35 | M42: 55
A45: Normal taxation | D45: -2 | E45: -7 | F45: -2 | I45: -15 | J45: -4 | M45: -3
A46: Deferred taxation | D46: 84 | E46: -24 | F46: 44 | I46: 57 | J46: 39 | M46: 58
A49: Net profit from continuing operations | D49: 114 | E49: 110 | F49: 39 | I49: 279 | J49: 103 | M49: 88
A52: Discontinued operations
A54: Profit/(loss) from discontinued operations | D54: 18 | E54: 19 | F54: -5 | I54: 53 | J54: -10.48366532 | M54: -2
A57: Net profit for the period | D57: 132 | E57: 129 | F57: 34 | I57: 332 | J57: 92.51633468 | M57: 86
A60: Attributable to:
A61: Owners of the parent | D61: 132 | E61: 129 | F61: 34 | I61: 332 | J61: 92.51633468 | M61: 86
A62: Non-controlling interest | D62: 0 | E62: 0 | F62: 0 | I62: 0 | J62: 0 | M62: 0
A65: Earnings per ordinary share (cents)
A67: Earnings from continuing operations | D67: 26 | E67: 25 | F67: 9 | I67: 65 | J67: 24 | M67: 21
A68: Earnings/(loss) from discontinued operations | D68: 4 | E68: 5 | F68: -1 | I68: 12 | J68: -2 | M68: -1
A71: Total earnings | D71: 30 | E71: 30 | F71: 8 | I71: 77 | J71: 22 | M71: 20
A74: Diluted earnings per ordinary share (cents)
A76: Earnings from continuing operations | D76: 26 | E76: 25 | F76: 9 | I76: 64 | J76: 24.22576715 | M76: 21
A77: Earnings/(loss) from discontinued operations | D77: 4 | E77: 5 | F77: -1 | I77: 12.41795033 | J77: -2.4084096 | M77: -1
A80: Total diluted earnings | D80: 30 | E80: 30 | F80: 8 | I80: 76.41795033 | J80: 21.81735755 | M80: 20
A83: ¹ The comparative figures are re-presented due to Evander being reclassified as a discontinued operation.
A84: The currency conversion average rates for the quarter ended: March 2012: US$1 = R7.73 (December 2011: US$1 = R8.10, March 2011: US$1 = 6.99). Nine months ended: March 2012: US$1 = R7.65 (March 2011: US$1 = R 7.06).
A86: The income statement for the year ended 30 June 2011 has been extracted from the 2011 Annual Report, but is re-presented due to Evander being reclassified as a discontinued operation.
A89: Note on convenience translations
A90: Except where specific statements have been extracted from the 2011 Annual Report, the requirements of IAS 21, The Effects of the Changes in Foreign Exchange Rates, have not necessarily been applied in the translation of the US Dollar financial statements presented on pages XX to XX.

Sheet Publish Com IS (US$)
A1: CONDENSED CONSOLIDATED STATEMENTS OF COMPREHENSIVE INCOME (US$)
A2: (Convenience translation)
C5: Quarter ended | G5: Nine months ended | J5: Year ended
C6: 31 March | D6: 31 December | E6: 31 March | G6: 31 March | H6: 31 March | J6: 30 June
C7: 2012 | D7: 2011 | E7: 2011 | G7: 2012 | H7: 2011 | J7: 2011
A8: Figures in million | C8: (Unaudited) | D8: (Unaudited) | E8: (Unaudited) | G8: (Unaudited) | H8: (Unaudited) | J8: (Audited)
A12: Net profit for the period | C12: 132 | D12: 129 | E12: 34 | G12: 332 | H12: 92.51633468 | J12: 86
A13: Other comprehensive (loss)/income for the period, net of income tax | C13: -19 | D13: 22 | E13: 0.8588605783 | G13: 127.970246 | H13: -7 | J13: 540
A16: Foreign exchange translation | C16: -20 | D16: 26 | E16: 3.149155454 | G16: 127.970246 | H16: 0 | J16: 555
A17: Gain/(loss) on fair value movement of available-for-sale investments | C17: 1 | D17: -4 | E17: -2.290294875 | G17: 0 | H17: -7 | J17: -15
A20: Total comprehensive income for the period | C20: 113 | D20: 151 | E20: 34.85886058 | G20: 459.970246 | H20: 85.51633468 | J20: 626
A23: Attributable to:
A24: Owners of the parent | C24: 113 | D24: 151 | E24: 34.85886058 | G24: 459.970246 | H24: 85.51633468 | J24: 626
A25: Non-controlling interest | C25: 0 | D25: 0 | E25: 0 | G25: 0 | H25: 0 | J25: 0
A28: The currency conversion average rates for the quarter ended: March 2012: US$1 = R7.73 (December 2011: US$1 = R8.10, March 2011: US$1 = 6.99). Nine months ended: March 2012: US$1 = R7.65 (March 2011: US$1 = R 7.06).
A30: The statement of comprehensive income for the year ended 30 June 2011 has been extracted from the 2011 Annual Report.

Sheet Publish BS (US$)
A1: CONDENSED CONSOLIDATED BALANCE SHEETS (US$)
A2: (Convenience translation)
C3: 31 | D3: 30 | E3: 30
C5: At | D5: At | E5: At | F5: At
C6: 31 March | D6: 31 December | E6: 30 June | F6: 31 March
C7: 2012 | D7: 2011 | E7: 2011 | F7: 2011
A8: Figures in million | C8: (Unaudited) | D8: (Unaudited) | E8: (Audited) | F8: (Unaudited)
A11: ASSETS
A13: Non-current assets
A15: Property, plant and equipment | C15: 4161 | D15: 4050 | E15: 4607 | F15: 4509
A16: Intangible assets | C16: 286 | D16: 269 | E16: 320 | F16: 323
A17: Restricted cash | C17: 4 | D17: 4 | E17: 5 | F17: 4
A18: Restricted investments | C18: 235 | D18: 238 | E18: 278 | F18: 275
A19: Deferred tax assets | C19: 136 | D19: 145 | E19: 170 | F19: 341
A20: Investments in financial assets | C20: 24 | D20: 23 | E20: 27 | F20: 35
A21: Inventories | C21: 21 | D21: 21 | E21: 25 | F21: 33
A22: Trade and other receivables | C22: 5 | D22: 3 | E22: 3 | F22: 10
F23: 0
A25: Total non-current assets | C25: 4872 | D25: 4753 | E25: 5435 | F25: 5530
A29: Current assets
A31: Inventories | C31: 141 | D31: 122 | E31: 124 | F31: 141
A32: Trade and other receivables | C32: 164 | D32: 139 | E32: 158 | F32: 164
A33: Income and mining taxes | C33: 18 | D33: 24 | E33: 21 | F33: 18
A34: Cash and cash equivalents | C34: 186 | D34: 149 | E34: 102 | F34: 97
C37: 509 | D37: 434 | E37: 405 | F37: 420
A38: Assets of disposal groups classified as held for sale | C38: 173 | D38: 39 | E38: 40 | F38: 26
A41: Total current assets | C41: 682 | D41: 473 | E41: 445 | F41: 446
A45: Total assets | C45: 5554 | D45: 5226 | E45: 5880 | F45: 5976
A49: EQYUITY AND LIABILITIES
A51: Share capital and reserves
A53: Share capital | C53: 3689 | D53: 3494 | E53: 4033 | F53: 4175
A54: Other reserves | C54: 236 | D54: 240 | E54: 519 | F54: 44
A55: Retained earnings | C55: 417 | D55: 291 | E55: -102 | F55: 167
A58: Total equity | C58: 4342 | D58: 4025 | E58: 4450 | F58: 4386
A62: Non-current liabilities
A64: Deferred tax liabilities | C64: 465 | D64: 549.0384734 | E64: 623 | F64: 830
A65: Provision for environmental rehabilitation | C65: 248 | D65: 258.051783 | E65: 291 | F65: 263
A66: Retirement benefit obligation and other provisions | C66: 24 | D66: 22 | E66: 26 | F66: 26
A67: Borrowings | C67: 166 | D67: 122.2415473 | E67: 181 | F67: 219
D68: 0
D69: 0
A70: Total non-current liabilities | C70: 903 | D70: 951.3318038 | E70: 1121 | F70: 1338
A74: Current liabilities
A76: Borrowings | C76: 41 | D76: 39.84260321 | E76: 49 | F76: 50
A77: Income and mining taxes | C77: 1 | D77: 0 | E77: 0 | F77: 3
A78: Trade and other payables | C78: 201 | D78: 207.9709877 | E78: 258 | F78: 199
C81: 243 | D81: 247.8135909 | E81: 307 | F81: 252
A82: Liabilities of disposal groups classified as held for sale | C82: 66 | D82: 2.096979117 | E82: 2 | F82: 0
A85: Total current liabilities | C85: 309 | D85: 249.91057 | E85: 309 | F85: 252
A89: Total equity and liabilities | C89: 5554 | D89: 5226.242374 | E89: 5880 | F89: 5976
A92: The balance sheet for March 2012 converted at a conversion rate of US$1 = R7.68 (December 2011: US$1 = R 8.11, March 2011: US$1 = R6.78).
A93: The balance sheet as at 30 June 2011 has been extracted from the 2011 Annual Report.

Sheet Publish CIE (US$)
B1: CONDENSED CONSOLIDATED STATEMENTS OF CHANGES IN EQUITY (US$) (Unaudited)
B2: for the nine months ended 31 March 2012
B3: (Convenience translation)
B6: Figures in million | D6: Share capital | E6: Other reserves | F6: Retained earnings | G6: Total
B9: Balance - 30 June 2011 | D9: 3686 | E9: 99 | F9: 142 | G9: 3927
B10: Issue of shares | D10: 3 | E10: 0 | F10: 0 | G10: 3
A11: BB210500 | B11: Share-based payments | D11: 0 | E11: 9 | F11: 0 | G11: 9
B12: Net profit for the period | D12: 0 | E12: 0 | F12: 331 | G12: 331
B13: Total comprehensive income for the period | D13: 0 | E13: 128 | F13: 0 | G13: 128
A14: BB550000 | B14: Dividends paid | D14: 0 | E14: 0 | F14: -56 | G14: -56
A17: BB100000 | B17: Balance - 31 March 2012 | D17: 3689 | E17: 236 | F17: 417 | G17: 4342
B20: Balance - 30 June 2010 | D20: 4171 | E20: 38 | F20: 102 | G20: 4311
B21: Issue of shares | D21: 4 | E21: 0 | F21: 0 | G21: 4
B22: Share-based payments | D22: 0 | E22: 13 | F22: 0 | G22: 13
B23: Net profit for the period | D23: 0 | E23: 0 | F23: 97 | G23: 97
B24: Total comprehensive loss for the period | D24: 0 | E24: -7 | F24: 0 | G24: -7
B25: Dividends paid | D25: 0 | E25: 0 | F25: -32 | G25: -32
B28: Balance - 31 March 2011 | D28: 4175 | E28: 44 | F28: 167 | G28: 4386
B31: The currency conversion closing rates for the period ended 31 March 2012: US$1 = R7.68 (March 2011: US$1 = R6.78).

Sheet Publish - Cash flow (US$)
A1: CONDENSED CONSOLIDATED CASH FLOW STATEMENTS (US$)
A2: (Convenience translation)
D5: Quarter ended | H5: Nine months ended | K5: Year ended
D6: 31 March | E6: 31 December | F6: 31 March | H6: 31 March | I6: 31 March | K6: 30 June
D7: 2012 | E7: 2011 | F7: 2011 | H7: 2012 | I7: 2011 | K7: 2011
A8: Figures in million | D8: (Unaudited) | E8: (Unaudited) | F8: (Unaudited) | H8: (Unaudited) | I8: (Unaudited) | K8: (Audited)
A12: Cash flow from operating activities
A13: Cash generated by operations | D13: 88 | E13: 193 | F13: 30 | H13: 437 | I13: 194 | K13: 346
A14: Interest and dividends received | D14: 4 | E14: 2 | F14: 9 | H14: 8 | I14: 16 | K14: 20
A15: Interest paid | D15: -3 | E15: -4 | F15: -5 | H15: -13 | I15: -14 | K15: -19
A16: Income and mining taxes refunded/(paid) | D16: 5 | E16: -18 | F16: 1 | H16: -15 | I16: -4 | K16: -7
A19: Cash generated by operating activities | D19: 94 | E19: 173 | F19: 35 | H19: 417 | I19: 192 | K19: 340
A22: Cash flow from investing activities
A23: Decrease in restricted cash | D23: 0 | E23: 0 | F23: 0 | H23: 0 | I23: 17 | K23: 17
A24: Proceeds on disposal of investment in subsidiary | D24: 0 | E24: 0 | F24: 0 | H24: 0 | I24: 32 | K24: 30
A25: Proceeds on disposal of investment in associate. | D25: 25 | E25: 0 | F25: 0 | H25: 25 | I25: 0 | K25: 0
A26: Pre-payment for Evander 6 and Twistdraai transaction | D26: 0 | E26: 0 | F26: 0 | H26: 0 | I26: 0 | K26: 15
A27: Other investing activities | D27: -4 | E27: 0 | F27: 2 | H27: -4 | I27: 3 | K27: 2
A28: Net additions to property, plant and equipment | D28: -96 | E28: -96 | F28: -98 | H28: -286 | I28: -323 | K28: -445
A31: Cash utilised by investing activities | D31: -75 | E31: -96 | F31: -96 | G31: 0 | H31: -265 | I31: -271 | J31: 0 | K31: -381
A34: Cash flow from financing activities
A35: Borrowings raised | D35: 40 | E35: 0 | F35: 36 | H35: 143 | I35: 110 | K35: 134
A36: Borrowings repaid | D36: -2 | E36: -89 | F36: -2 | H36: -142 | I36: -18 | K36: -81
A37: Ordinary shares issued - net of expenses | D37: 0 | E37: 1 | F37: 2 | H37: 3 | I37: 4 | K37: 6
A38: Dividends paid | D38: -23 | E38: 0 | F38: 0 | H38: -57 | I38: -30 | K38: -30
A41: Cash generated/(utilised) by financing activities | D41: 15 | E41: -88 | F41: 36 | H41: -53 | I41: 66 | K41: 29
A44: Foreign currency translation adjustments | D44: -4 | E44: -4 | F44: -5 | H44: -4 | I44: 9 | K44: 13
A47: Net increase/(decrease) in cash and cash equivalents | D47: 30 | E47: -15 | F47: -30 | H47: 95 | I47: -4 | K47: 1
A48: Cash and cash equivalents - beginning of period | D48: 156 | E48: 164 | F48: 127 | H48: 91 | I48: 101 | K48: 101
A51: Cash and cash equivalents - end of period | D51: 186 | E51: 149 | F51: 97 | H51: 186 | I51: 97 | K51: 102
A54: The currency conversion average rates for the quarter ended: March 2012: US$1 = R7.73 (December 2011: US$1 = R8.10, March 2011: US$1 = 6.99). Nine months ended: March 2012: US$1 = R7.65 (March 2011: US$1 = R 7.06).
A56: Closing balance translated at closing rates of: March 2012: US$1 = R7.68 (December 2011: US$1 = R8.11, March 2011: US$ = R6.78).
A57: The cash flow statement for the year ended 30 June 2011 has been extracted from the 2011 Annual Report.

Sheet Segment Report (US$)
A1: NOTES TO THE GROUP FINANCIAL STATEMENTS
A2: for the nine months ended 31 March 2012
A5: Segment report (US$/Imperial) Unaudited
B7: Revenue | D7: Production cost | F7: Production profit/(loss) | H7: Capital expenditure | J7: Ounces produced | L7: Tons milled
B8: 31 March | D8: 31 March | F8: 31 March | H8: 31 March | J8: 31 March | L8: 31 March
B9: 2012 | C9: 2011 | D9: 2012 | E9: 2011 | F9: 2012 | G9: 2011 | H9: 2012 | I9: 2011 | J9: 2012 | K9: 2011 | L9: 2012 | M9: 2011
B10: US$ million | D10: US$ million | F10: US$ million | H10: US$ million | J10: oz | L10: t'000
A13: Continuing operations
A14: South Africa
A15: Underground
A16: Bambanani | B16: 55 | C16: 95 | D16: 63 | E16: 85 | F16: -8 | G16: 10 | H16: 28 | I16: 33 | J16: 34336 | K16: 73593 | L16: 180 | M16: 346
A17: Doornkop | B17: 123 | C17: 75 | D17: 82 | E17: 59 | F17: 41 | G17: 16 | H17: 26 | I17: 31 | J17: 72757 | K17: 56425 | L17: 735 | M17: 534
A18: Joel | B18: 101 | C18: 42 | D18: 53 | E18: 42 | F18: 48 | G18: 0 | H18: 6 | I18: 8 | J18: 60219 | K18: 32182 | L18: 452 | M18: 315
A19: Kusasalethu | B19: 219 | C19: 177 | D19: 140 | E19: 138 | F19: 79 | G19: 39 | H19: 41 | I19: 39 | J19: 129985 | K19: 129343 | L19: 948 | M19: 876
A20: Masimong | B20: 135 | C20: 148 | D20: 83 | E20: 81 | F20: 52 | G20: 67 | H20: 22 | I20: 18 | J20: 79284 | K20: 111016 | L20: 774 | M20: 747
A21: Phakisa | B21: 98 | C21: 56 | D21: 76 | E21: 48 | F21: 22 | G21: 8 | H21: 30 | I21: 39 | J21: 57871 | K21: 41474 | L21: 406 | M21: 310
A22: Target | B22: 196 | C22: 104 | D22: 120 | E22: 74 | F22: 76 | G22: 30 | H22: 32 | I22: 49 | J22: 117512 | K22: 96999 | L22: 931 | M22: 620
A23: Tshepong | B23: 221 | C23: 214 | D23: 122 | E23: 121 | F23: 99 | G23: 93 | H23: 26 | I23: 29 | J23: 129727 | K23: 160592 | L23: 1009 | M23: 1120
A24: Virginia | B24: 63 | C24: 76 | D24: 48 | E24: 63 | F24: 15 | G24: 13 | H24: 7 | I24: 9 | J24: 36459 | K24: 57646 | L24: 310 | M24: 519
F25: 0 | G25: 0
A26: Surface
A27: All other surface operations | B27: 141 | C27: 107 | D27: 88 | E27: 86 | F27: 53 | G27: 21 | H27: 9 | I27: 13 | J27: 82628 | K27: 82980 | L27: 7717 | M27: 8426
A30: Total South Africa | B30: 1352 | C30: 1094 | D30: 875 | E30: 797 | F30: 477 | G30: 297 | H30: 227 | I30: 268 | J30: 800778 | K30: 842250 | L30: 13462 | M30: 13813
A33: International
A34: Papua New Guinea | B34: 117 | C34: 102 | D34: 75 | E34: 73 | F34: 42 | G34: 29 | H34: 23 | I34: 30 | J34: 67452.1686 | K34: 73690 | L34: 1442.258961 | M34: 1389
A35: Other | B35: 0 | C35: 0 | D35: 0 | E35: 0 | F35: 0 | G35: 0 | H35: 25 | I35: 0 | J35: 0 | K35: 0 | L35: 0 | M35: 0
A38: Total international | B38: 117 | C38: 102 | D38: 75 | E38: 73 | F38: 42 | G38: 29 | H38: 48 | I38: 30 | J38: 67452.1686 | K38: 73690 | L38: 1442.258961 | M38: 1389
A41: Total continuing operations | B41: 1469 | C41: 1196 | D41: 950 | E41: 870 | F41: 519 | G41: 326 | H41: 275 | I41: 298 | J41: 868230.1686 | K41: 915940 | L41: 14904.25896 | M41: 15202
A44: Discontinued operations
A45: Evander | B45: 145 | C45: 82 | D45: 74 | E45: 72 | F45: 71 | G45: 10 | H45: 17 | I45: 21 | J45: 85939 | K45: 60894 | L45: 539 | M45: 697
A48: Total discontinued operations | B48: 145 | C48: 82 | D48: 74 | E48: 72 | F48: 71 | G48: 10 | H48: 17 | I48: 21 | J48: 85939 | K48: 60894 | L48: 539 | M48: 697
A51: Total operations | B51: 1614 | C51: 1278 | D51: 1024 | E51: 942 | F51: 590 | G51: 336 | H51: 292 | I51: 319 | J51: 954169.1686 | K51: 976834 | L51: 15443.25896 | M51: 15899
E896: A 10% decrease in the gold price at the reporting date would have resulted in the following additional impairments being recognised in the 2010 and 2009 financial year. This analysis assumes that all other variables remain constant. The analysis is performed on the same basis for 2009.
K904: President Steyn 2
K905: Evander 8

Sheet WS- Weighted ave share - Serame (hidden)
A1: Harmony Gold Mining Company Limited | E1: 2011-12-31 | G1: 31 December 2011
D2: Average exchange rate - Quarter to date | E2: 8.0971
A3: WEIGHTED AVERAGE - QUARTER
A5: Calculation of weighted average share capital | B5: Date | C5: Number | D5: Days | E5: Total
A7: Issued shares as at 30 September 2011 | B7: 2011-09-30 | C7: 430272715 | D7: =+E$1-B7 -> 92 | E7: =+C7*D7 -> 39585089780
A8: Exercise of share options | B8: 2011-10-17 | C8: =2784+3600+18000 -> 24384 | D8: =+E$1-B8 -> 75 | E8: =+C8*D8 -> 1828800
A9: Exercise of SARs | B9: 2011-10-17 | C9: 1690 | D9: 75 | E9: 126750
A10: Exercise of share options | B10: 2011-11-11 | C10: =11800+37160+21000 -> 69960 | D10: 50 | E10: 3498000
A11: Exercise of SARs | B11: 2011-11-11 | C11: 2627 | D11: 50 | E11: 131350
A12: Exercise of share options | B12: 2011-11-22 | C12: =66230+20000 -> 86230 | D12: 39 | E12: 3362970
A13: Exercise of SARs | B13: 2011-11-22 | C13: 50828 | D13: 39 | E13: 1982292
A14: Exercise of share options | B14: 2011-12-13 | C14: =11251+8200 -> 19451 | D14: =+E$1-B14 -> 18 | E14: =+C14*D14 -> 350118
A15: Exercise of SARs | B15: 2011-12-13 | C15: 96045 | D15: 18 | E15: 1728810
A16: Vesting of Performance Shares | B16: 2011-12-15 | C16: 688747 | D16: =+E$1-B16 -> 16 | E16: =+C16*D16 -> 11019952
E17: =SUM(E7:E16) -> 39609118822
A18: ="Total issued share capital as at "&$G$1 -> Total issued share capital as at 31 December 2011 | C18: =SUM(C7:C17) -> 431312677
A19: ="Total issued share capital as at "&$G$1&" per share register" -> Total issued share capital as at 31 December 2011 per share register | C19: 431312677 | G19: =C18-C19 -> 0
E20: =ROUND(+E17/D7,0) -> 430533900
A21: Treasury shares:
A22: - Share issued into share trust | E22: =-#REF! -> 
A23: - Share issued to Lydex | E23: =-#REF! -> 
E24: =SUM(E20:E23) -> 
A25: Dilution i.r.o:
A26: - Outstanding share options | E26: =+#REF! -> 
A27: ="Diluted weighted average amount of shares for the period ended "&G1 -> Diluted weighted average amount of shares for the period ended 31 December 2011 | E27: =IF((E26)<0,E24,SUM(E24:E26)) -> 
G28: Per share
A29: Net income (R'000) | E29: =#REF!/1000 ->  | G29: =ROUND(E29/$E$24*1000*100,0) -> 
A30: Adjustments:
A31: Loss/(profit) on sale of property, plant and equipment | E31: =#REF! ->  | G31: =ROUND(E31/$E$24*1000*100,0) -> 
A32: Loss/(profit) on sale of listed investments | E32: =+#REF! -> 
A33: Loss/(profit) on sale of assets by subsidiary | E33: =#REF! -> 
A34: Loss/(profit) on sale of investment in associate | E34: =+#REF! -> 
A35: Loss/(gain) on mark to market of listed investment | E35: =#REF! ->  | G35: =ROUND(E35/$E$24*1000*100,0) -> 
A36: Foreign exchange loss/(gain) on repayment of loans | E36: =#REF! ->  | G36: =ROUND(E36/$E$24*1000*100,0) -> 
A37: Impairment/(Reversal of impairment) in investments | E37: =+#REF! -> 
A38: Impairmentof assets | E38: =#REF! -> 
A40: Headline earnings (R'000) | E40: =SUM(E29:E39) ->  | G40: =ROUND(E40/$E$24*1000*100,0) ->  | I40: =E40-E29-#REF! -> 
A41: Net income ($'000) | E41: =E29/$E$2 ->  | G41: =G40-ROUND(E51,0) -> 
A42: Headline earnings ($'000) | E42: =E40/$E$2 -> 
A43: Cash earnings per share (Cents(R-value)) | E43: =('Publish IS (R)'!D11+'Publish IS (R)'!D15)*1000000*100/$E$24 -> 
A44: Cash earnings per share (Cents($-value)) | E44: =('Publish IS (R)'!D11+'Publish IS (R)'!D15)*1000000/$E$2*100/$E$24 -> 
A45: Basic earnings per share (Cents(R-value)) | E45: =E29*1000*100/E24 -> 
A46: Basic earnings per share (Cents($-value)) | E46: =E41*1000*100/E24 -> 
A47: Basic earnings per share before impairments (Cents(R-value)) | E47: =(E29+E32)*1000*100/E24 -> 
A48: Basic earnings per share before impairments (Cents($-value)) | E48: =(E41+(E32/E2))*1000*100/E24 -> 
A49: Diluted earnings per share (Cents(R-value)) | E49: =IF(E29/E27*1000*100>E45,E45,E29/E27*1000*100) -> 
A50: Diluted earnings per share (Cents($-value)) | E50: =E41/E27*1000*100 -> 
A51: Headline earnings per share (Cents(R-value)) | E51: =E40*1000*100/$E$24 -> 
A52: Headline earnings per share (Cents($-value)) | E52: =E42*1000*100/$E$24 -> 
A53: Fully diluted headline earnings per share (Cents(R-value)) | E53: =IF(E40*1000*100/$E$27>E51,E51,E40*1000*100/$E$27) -> 
A54: Fully diluted headline earnings per share (Cents($-value)) | E54: =E42*1000*100/$E$27 -> 
A55: WEIGHTED AVERAGE - YEAR TO DATE
D56: Average exchange rate - Year to date | E56: 7.6073
A58: Calculation of weighted average share capital | B58: Date | C58: Number | D58: Days | E58: Total
A60: Issued shares as at 30 June 2011 | B60: 2011-06-30 | C60: 430084628 | D60: =+E$1-B60 -> 184 | E60: =+C60*D60 -> 79135571552
A61: Exercise of share options | B61: 2011-09-09 | C61: 28825 | D61: =+E$1-B61 -> 113 | E61: =+C61*D61 -> 3257225
A62: Exercise of share options | B62: 2011-09-09 | C62: 22420 | D62: =+E$1-B62 -> 113 | E62: 2533460
A63: Exercise of SARs | B63: 2011-09-09 | C63: 5744 | D63: 113 | E63: =+C63*D63 -> 649072
A64: Exercise of share options | B64: 2011-09-09 | C64: 15000 | D64: 113 | E64: 1695000
A65: Exercise of share options | B65: 2011-09-21 | C65: 37687 | D65: 101 | E65: 3806387
A66: Exercise of share options | B66: 2011-09-21 | C66: 11938 | D66: 101 | E66: 1205738
A67: Exercise of SARs | B67: 2011-09-21 | C67: 1993 | D67: 101 | E67: 201293
A68: Exercise of share options | B68: 2011-09-30 | C68: 47553 | D68: =+E$1-B68 -> 92 | E68: =+C68*D68 -> 4374876
A69: Exercise of share options | B69: 2011-09-30 | C69: 2862 | D69: =+E$1-B69 -> 92 | E69: =+C69*D69 -> 263304
A70: Exercise of share options | B70: 2011-09-30 | C70: 12600 | D70: =+E$1-B70 -> 92 | E70: =+C70*D70 -> 1159200
A71: Exercise of SARs | B71: 2011-09-30 | C71: 1465 | D71: 92 | E71: 134780
A72: Exercise of share options | B72: 2011-10-17 | C72: =2784+3600+18000 -> 24384 | D72: =+E$1-B72 -> 75 | E72: 1828800
A73: Exercise of SARs | B73: 2011-10-17 | C73: 1690 | D73: 75 | E73: 126750
A74: Exercise of share options | B74: 2011-11-11 | C74: =11800+37160+21000 -> 69960 | D74: 50 | E74: 3498000
A75: Exercise of SARs | B75: 2011-11-11 | C75: 2627 | D75: 50 | E75: 131350
A76: Exercise of share options | B76: 2011-11-22 | C76: =66230+20000 -> 86230 | D76: 39 | E76: 3362970
A77: Exercise of SARs | B77: 2011-11-22 | C77: 50828 | D77: 39 | E77: 1982292
A78: Exercise of share options | B78: 2011-12-13 | C78: =11251+8200 -> 19451 | D78: 18 | E78: 350118
A79: Exercise of SARs | B79: 2011-12-13 | C79: 96045 | D79: 18 | E79: 1728810
A80: Vesting of Performance Shares | B80: 2011-12-15 | C80: 688747 | D80: 16 | E80: 11019952
E82: =SUM(E60:E81) -> 79178880929
A83: ="Total issued share capital as at "&G1 -> Total issued share capital as at 31 December 2011 | C83: =SUM(C60:C82) -> 431312677
A84: ="Total issued share capital as at "&$G$1&" per share register" -> Total issued share capital as at 31 December 2011 per share register | C84: 431312677 | G84: =C83-C84 -> 0
E85: =ROUND(+E82/D60,0) -> 430320005
A86: Treasury shares:
A87: - Share issued into share trust | E87: =-#REF! -> 
A88: - Share issued to Lydex | E88: =-#REF! -> 
A89: ="Weighted average amount of ordinary shares for the period ended "&G1 -> Weighted average amount of ordinary shares for the period ended 31 December 2011 | E89: =SUM(E84:E88) -> 
A90: =A25 -> Dilution i.r.o:
A91: - Outstanding share options | E91: =+#REF! -> 
A92: ="Diluted weighted average amount of shares for the period ended "&G1 -> Diluted weighted average amount of shares for the period ended 31 December 2011 | E92: =IF((E91)<0,E89,SUM(E89:E91)) -> 
G93: Per share
A94: Net income (R'000) | E94: =#REF!/1000 ->  | G94: =ROUND(E94/$E$89*1000*100,0) -> 
A95: Adjustments:
A96: Loss/(profit) on sale of property, plant and equipment | E96: =+#REF! ->  | G96: =ROUND(E96/$E$89*1000*100,0) -> 
A97: Loss/(profit) on sale of listed investments | E97: =+#REF! -> 
A98: Loss/(profit) on sale of assets by subsidiary | E98: =#REF! -> 
A99: Loss/(gain) on mark to market of listed investment | E99: =#REF! ->  | G99: =ROUND(E99/$E$89*1000*100,0) -> 
A100: Foreign exchange loss/(gain) on loss of control of subsidiaries | E100: =#REF! ->  | G100: =ROUND(E100/$E$89*1000*100,0) -> 
A101: Reversal of provision for doubtful debt (relating to sale of assets) | E101: =+#REF! -> 
A102: Impairment/(Reversal of impairment) in investments | E102: =+#REF! -> 
A103: Impairment of assets | E103: =+#REF! -> 
A105: Headline earnings (R'000) | E105: =SUM(E94:E104) ->  | G105: =ROUND(E105/$E$89*1000*100,0) ->  | I105: =E105-E94-#REF! -> 
A106: Net income ($'000) | E106: =E94/$E$56 ->  | G106: =G105-ROUND(E116,0) -> 
A107: Headline earnings ($'000) | E107: =E105/$E$56 -> 
A108: Cash earnings per share (Cents(R-value)) | E108: =('Publish IS (R)'!I11*1000000+'Publish IS (R)'!I15*1000000)*100/E89 -> 
A109: Cash earnings per share (Cents($-value)) | E109: =('Publish IS (R)'!I11+'Publish IS (R)'!I15)/E56*1000000*100/E89 -> 
A110: Basic earnings per share (Cents(R-value)) | E110: =E94*1000*100/E89 -> 
A111: Basic earnings per share (Cents($-value)) | E111: =E106*1000*100/E89 -> 
A112: Basic earnings per share before impairments (Cents(R-value)) | E112: =(E94+E102)*1000*100/E89 -> 
A113: Basic earnings per share before impairments (Cents($-value)) | E113: =(E106+(E102/E56))*1000*100/E89 -> 
A114: Diluted earnings per share (Cents(R-value)) | E114: =IF(E94/E92*1000*100>E110,E110,E94/E92*1000*100) -> 
A115: Diluted earnings per share (Cents($-value)) | E115: =E106/E92*1000*100 -> 
A116: Headline earnings per share (Cents(R-value)) | E116: =E105*1000*100/$E$89 -> 
A117: Headline earnings per share (Cents($-value)) | E117: =E107*1000*100/$E$89 -> 
A118: Fully diluted headline earnings per share (Cents(R-value)) | E118: =IF(E105*1000*100/$E$92>E116,E116,E105*1000*100/$E$92) -> 
A119: Fully diluted headline earnings per share (Cents($-value)) | E119: =E107*1000*100/$E$92 -> 
A124: Harmony Gold Mining Company Limited | E124: 2011-03-31 | G124: 31 March 2011
A126: WEIGHTED AVERAGE - YEAR TO DATE
D127: Average exchange rate - Year to date | E127: 7.058580612 | L127: Average exchange rate - Quarter to date | M127: 6.986040625
I128: WEIGHTED AVERAGE - QUARTER
A129: Calculation of weighted average share capital | B129: Date | C129: Number | D129: Days | E129: Total
I130: Calculation of weighted average share capital | J130: Date | K130: Number | L130: Days | M130: Total
A131: Issued shares as at 30 June 2010 | B131: 2010-06-30 | C131: 428654779 | D131: 274 | E131: 117451409446
A132: Exercise of share options | B132: 2010-07-02 | C132: 10891 | D132: 272 | E132: 2962352 | I132: Issued shares as at 31 December 2011 | J132: 2010-12-31 | K132: 429506618 | L132: 90 | M132: 38655595620
A133: Exercise of share options | B133: 2010-07-02 | C133: 2000 | D133: 272 | E133: 544000 | I133: Exercise of share options | J133: 2011-01-20 | K133: 83605 | L133: 70 | M133: 5852350
A134: Exercise of share options | B134: 2010-07-02 | C134: 32587 | D134: 272 | E134: 8863664 | I134: Exercise of share options | J134: 2011-01-20 | K134: 20680 | L134: 70 | M134: 1447600
A135: Exercise of share options | B135: 2010-07-02 | C135: 4151 | D135: 272 | E135: 1129072 | I135: Exercise of SARs | J135: 2011-01-20 | K135: 3424 | L135: 70 | M135: 239680
A136: Exercise of share options | B136: 2010-07-02 | C136: 10312 | D136: 272 | E136: 2804864 | I136: Exercise of share options | J136: 2011-02-21 | K136: 45247 | L136: 38 | M136: 1719386
A137: Exercise of share options | B137: 2010-07-02 | C137: 9000 | D137: 272 | E137: 2448000 | I137: Exercise of share options | J137: 2011-02-21 | K137: 16600 | L137: 38 | M137: 630800
A138: Exercise of share options | B138: 2010-07-02 | C138: 5015 | D138: 272 | E138: 1364080 | I138: Exercise of SARs | J138: 2011-02-21 | K138: 424 | L138: 38 | M138: 16112
A139: Exercise of share options | B139: 2010-07-02 | C139: 50526 | D139: 272 | E139: 13743072 | I139: Exercise of share options | J139: 2011-03-07 | K139: 10090 | L139: 24 | M139: 242160
A140: Exercise of share options | B140: 2010-07-02 | C140: 3600 | D140: 272 | E140: 979200 | I140: Exercise of share options | J140: 2011-03-07 | K140: 2400 | L140: 24 | M140: 57600
A141: Exercise of share options | B141: 2010-07-02 | C141: 4417 | D141: 272 | E141: 1201424 | I141: Exercise of share options | J141: 2011-03-07 | K141: 7000 | L141: 24 | M141: 168000
A142: Exercise of share options | B142: 2010-08-26 | C142: 28598 | D142: 217 | E142: 6205766 | I142: Exercise of SARs | J142: 2011-03-07 | K142: 3672 | L142: 24 | M142: 88128
A143: Exercise of share options | B143: 2010-09-01 | C143: 3100 | D143: 211 | E143: 654100 | I143: Exercise of share options | J143: 2011-03-14 | K143: 800 | L143: 17 | M143: 13600
A144: Exercise of share options | B144: 2010-09-08 | C144: 2000 | D144: 204 | E144: 408000 | I144: Exercise of SARs | J144: 2011-03-14 | K144: 363 | L144: 17 | M144: 6171
A145: Exercise of share options | B145: 2010-09-09 | C145: 8080 | D145: 203 | E145: 1640240 | I145: Shares issued to cover NFT | J145: 2011-03-14 | K145: 15810 | L145: 17 | M145: 268770
A146: Exercise of share options | B146: 2010-09-10 | C146: 8954 | D146: 202 | E146: 1808708 | I146: Exercise of share options | J146: 2011-03-17 | K146: 10000 | L146: 14 | M146: 140000
A147: Exercise of share options | B147: 2010-09-15 | C147: 3500 | D147: 197 | E147: 689500 | I147: Exercise of share options | J147: 2011-03-17 | K147: 1200 | L147: 14 | M147: 16800
A148: Exercise of share options | B148: 2010-09-15 | C148: 6974 | D148: 197 | E148: 1373878 | I148: Exercise of share options | J148: 2011-03-17 | K148: 30545 | L148: 14 | M148: 427630
A149: Exercise of share options | B149: 2010-09-20 | C149: 2100 | D149: 192 | E149: 403200 | I149: Exercise of share options | J149: 2011-03-17 | K149: 3840 | L149: 14 | M149: 53760
A150: Exercise of share options | B150: 2010-10-01 | C150: 13451 | D150: 181 | E150: 2434631 | I150: Exercise of SARs | J150: 2011-03-17 | K150: 210 | L150: 14 | M150: 2940
A151: Shares issued to cover NFT | B151: 2010-10-01 | C151: 9660 | D151: 181 | E151: 1748460 | I151: Exercise of share options | J151: 2011-03-23 | K151: 25096 | L151: 8 | M151: 200768
A152: Exercise of share options | B152: 2010-11-03 | C152: 30456 | D152: 148 | E152: 4507488 | I152: Exercise of share options | J152: 2011-03-23 | K152: 11789 | L152: 8 | M152: 94312
A153: Exercise of share options | B153: 2010-11-03 | C153: 25200 | D153: 148 | E153: 3729600 | I153: Exercise of SARs | J153: 2011-03-23 | K153: 7958 | L153: 8 | M153: 63664
A154: Exercise of share options | B154: 2010-11-10 | C154: 7576 | D154: 141 | E154: 1068216 | M154: 38667345851
A155: Exercise of share options | B155: 2010-11-10 | C155: 6000 | D155: 141 | E155: 846000 | I155: Total issued share capital as at 31 March 2011 | K155: 429807371
A156: Exercise of share options | B156: 2010-11-10 | C156: 36589 | D156: 141 | E156: 5159049 | I156: Total issued share capital as at 31 March 2011 per share register | K156: 429807371
A157: Exercise of share options | B157: 2010-11-10 | C157: 12000 | D157: 141 | E157: 1692000 | M157: 429637176
A158: Exercise of share options | B158: 2010-11-10 | C158: 8084 | D158: 141 | E158: 1139844 | I158: Treasury shares:
A159: Exercise of share options | B159: 2010-11-16 | C159: 12812 | D159: 135 | E159: 1729620 | I159: - Share issued into share trust | M159: -107236
A160: Exercise of share options | B160: 2010-11-16 | C160: 800 | D160: 135 | E160: 108000 | I160: - Share issued to Lydex | M160: -2314
A161: Performance shares provision | B161: 2010-11-16 | C161: 416628 | D161: 135 | E161: 56244780 | M161: 429527626
A162: Exercise of SARs | B162: 2010-11-23 | C162: 6094 | D162: 128 | E162: 780032 | I162: Dilution i.r.o:
A163: Performance shares provision | B163: 2010-11-23 | C163: 63827 | D163: 128 | E163: 8169856 | I163: - Outstanding share options | M163: 1175830.772
A164: Exercise of share options | B164: 2010-11-23 | C164: 2657 | D164: 128 | E164: 340096 | I164: Diluted weighted average amount of shares for the period ended 31 March 2011 | M164: 430703456.8
A165: Exercise of share options | B165: 2010-11-23 | C165: 4200 | D165: 128 | E165: 537600
A166: Exercise of share options | B166: 2011-01-20 | C166: 83605 | D166: 70 | E166: 5852350 | I166: Net income (R'000) | M166: 237642.3228
A167: Exercise of share options | B167: 2011-01-20 | C167: 20680 | D167: 70 | E167: 1447600 | I167: Adjustments:
A168: Exercise of SARs | B168: 2011-01-20 | C168: 3424 | D168: 70 | E168: 239680 | I168: Loss/(profit) on sale of property, plant and equipment | M168: -5480.147113
A169: Exercise of share options | B169: 2011-02-21 | C169: 45247 | D169: 38 | E169: 1719386 | I169: Loss/(profit) on sale of listed investments | M169: -2034.969666
A170: Exercise of share options | B170: 2011-02-21 | C170: 16600 | D170: 38 | E170: 630800 | I170: Loss/(profit) on sale of assets by subsidiary | M170: 0
A171: Exercise of SARs | B171: 2011-02-21 | C171: 424 | D171: 38 | E171: 16112 | I171: Loss/(profit) on sale of investment in associate | M171: 0
A172: Exercise of share options | B172: 2011-03-07 | C172: 10090 | D172: 24 | E172: 242160 | I172: Loss/(gain) on mark to market of listed investment | M172: 0
A173: Exercise of share options | B173: 2011-03-07 | C173: 2400 | D173: 24 | E173: 57600 | I173: Foreign exchange loss/(gain) on repayment of loans | M173: 0
A174: Exercise of share options | B174: 2011-03-07 | C174: 7000 | D174: 24 | E174: 168000 | I174: Impairment/(Reversal of impairment) in investments | M174: 159767.2715
A175: Exercise of SARs | B175: 2011-03-07 | C175: 3672 | D175: 24 | E175: 88128 | I175: Provision for doubtful debt - Rand Uranium | M175: 0
A176: Exercise of share options | B176: 2011-03-14 | C176: 800 | D176: 17 | E176: 13600 | I176: Reversal of provision for doubtful debt (relating to sale of assets) | M176: 4.656719454e-12
A177: Exercise of SARs | B177: 2011-03-14 | C177: 363 | D177: 17 | E177: 6171
A178: Shares issued to cover NFT | B178: 2011-03-14 | C178: 15810 | D178: 17 | E178: 268770 | I178: Headline earnings (R'000) | M178: 389894.4775
A179: Exercise of share options | B179: 2011-03-17 | C179: 10000 | D179: 14 | E179: 140000 | I179: Net income ($'000) | M179: 34016.73932
A180: Exercise of share options | B180: 2011-03-17 | C180: 1200 | D180: 14 | E180: 16800 | I180: Headline earnings ($'000) | M180: 55810.50819
A181: Exercise of share options | B181: 2011-03-17 | C181: 30545 | D181: 14 | E181: 427630 | I181: Cash earnings per share (Cents(R-value)) | M181: 206.0877864
A182: Exercise of share options | B182: 2011-03-17 | C182: 3840 | D182: 14 | E182: 53760 | I182: Cash earnings per share (Cents($-value)) | M182: 29.49994102
A183: Exercise of SARs | B183: 2011-03-17 | C183: 210 | D183: 14 | E183: 2940 | I183: Basic earnings per share (Cents(R-value)) | M183: 55.32643501
A184: Exercise of share options | B184: 2011-03-23 | C184: 25096 | D184: 8 | E184: 200768 | I184: Basic earnings per share (Cents($-value)) | M184: 7.919569607
A185: Exercise of share options | B185: 2011-03-23 | C185: 11789 | D185: 8 | E185: 94312 | I185: Basic earnings per share before impairments (Cents(R-value)) | M185: 54.85266579
A186: Exercise of SARs | B186: 2011-03-23 | C186: 7958 | D186: 8 | E186: 63664 | I186: Basic earnings per share before impairments (Cents($-value)) | M186: 7.851753051
I187: Diluted earnings per share (Cents(R-value)) | M187: 55.17539251
E188: 117602618069 | I188: Diluted earnings per share (Cents($-value)) | M188: 7.897948992
A189: Total issued share capital as at 31 March 2011 | C189: 429807371 | I189: Headline earnings per share (Cents(R-value)) | M189: 90.7728523
A190: Total issued share capital as at 31 March 2011 per share register | C190: 429807371 | G190: 0 | I190: Headline earnings per share (Cents($-value)) | M190: 12.99346184
E191: 429206635 | I191: Fully diluted headline earnings per share (Cents(R-value)) | M191: 90.52504023
A192: Treasury shares: | I192: Fully diluted headline earnings per share (Cents($-value)) | M192: 12.95798938
A193: - Share issued into share trust | E193: -112616
A194: - Share issued to Lydex | E194: -2314
A195: Weighted average amount of ordinary shares for the period ended 31 March 2011 | E195: 429091705
A196: Dilution i.r.o:
A197: - Outstanding share options | E197: 1060466.9
A198: Diluted weighted average amount of shares for the period ended 31 March 2011 | E198: 430152171.9
G199: Per share
A200: Net income (R'000) | E200: 658780.6752 | G200: 154
A201: Adjustments:
A202: Loss/(profit) on sale of property, plant and equipment | E202: -17555.86211 | G202: -4
A203: Loss/(profit) on sale of listed investments | E203: -2034.969666 | G203: 0
A204: Loss/(profit) on sale of assets by subsidiary | E204: -104001.9645 | G204: -24
A205: Loss/(gain) on mark to market of listed investment | E205: -1001 | G205: 0
A206: Foreign exchange loss/(gain) on loss of control of subsidiaries | E206: 131871.1469 | G206: 31
A207: Reversal of provision for doubtful debt (relating to sale of assets) | E207: 0 | G207: 0
A208: Impairment/(Reversal of impairment) in investments | E208: 159770.1515 | G208: 37
A209: Provision for doubtful debt - Rand Uranium | E209: 0
A210: Impairment of assets | E210: 4.656719454e-12 | G210: 0
A212: Headline earnings (R'000) | E212: 825828.1773 | G212: 192
A213: Net income ($'000) | E213: 93330.47413 | G213: 0
... 297 more rows

Sheet WS - Diluted shares - SEPT10qtd (hidden)
A1: QUARTER - 31 December 2010
A3: SUMMARY FOR DILUTION SHARES ON 31 December 2010 (For the quarter)
A5: 2006 Share Scheme (Share Appreciation Rights)
A6: Date granted | H6: Share option price | I6: Dilutive
A7: =+A68 -> Share options - Grant date 15 November 2006 | H7: 112.64 | I7: =+H93 -> 0
A8: =+A96 -> Share options - Grant date 15 November 2007 (Management) | H8: 70.54 | I8: =+H120 -> 43565.75403
A9: =+A122 -> Share options - Grant date 15 November 2007 (Executive) | H9: 70.54 | I9: =+H146 -> 37776.10242
A10: =+A148 -> Share options - Grant date 7 March 2008 | H10: 102 | I10: =+H168 -> 0
A11: =+A171 -> Share options - Grant date 5 December 2008 (Management) | H11: 77.81 | I11: =H191 -> 0
A12: =+A193 -> Share options - Grant date 5 December 2008 (Executives+Z3 level employees) | H12: 77.81 | I12: =H213 -> 0
A13: =+A216 -> Share options - Grant date 16 November 2009 (Management) | H13: 77.28 | I13: =H236 -> 0
A14: =+A238 -> Share options - Grant date 16 November 2009 (Management) - Australia | H14: 77.28 | I14: =H258 -> 0
A15: =+A261 -> Share options - Grant date 16 November 2009 (Executives) | H15: 77.28 | I15: =H281 -> 0
A16: =+A284 -> Share options - Grant date 16 November 2009 (Executives) - Australia | H16: 77.28 | I16: =+H304 -> 0
A17: =+A309 -> Share options - Grant date 15 November 2010 (Management) | H17: 84.81 | I17: =+H329 -> 0
A18: =+A331 -> Share options - Grant date 15 November 2010 (Executives) - Australia | H18: 84.81 | I18: =+H351 -> 0
A19: =+A354 -> Share options - Grant date 15 November 2010 (Management) - Australia | H19: 84.81 | I19: =+H374 -> 0
A20: =+A377 -> Share options - Grant date 15 November 2010 SA Executives | H20: 84.81 | I20: =+H397 -> 0
I21: =SUM(I7:I16) -> 81341.85645
A23: 2006 Share Scheme (Performance Shares)
A24: Date granted | H24: Share option price | I24: Dilutive
A25: =+A404 -> Share options - Grant date 15 November 2006 | H25: 0.5 | I25: =J413 -> 0
A26: =+A416 -> Share options - Grant date 15 November 2007 (Management) | H26: 0.5 | I26: =J425 -> 0
A27: =+A428 -> Share options - Grant date 15 November 2007 (Executive) | H27: 0.5 | I27: =J437 -> 0
A28: =+A440 -> Share options - Grant date 7 March 2008 | H28: 0.5 | I28: =J449 -> 0
A29: =+A452 -> Share options - Grant date 5 December 2008 (Management) | H29: 0.5 | I29: =J461 -> 0
A30: =+A464 -> Share options - Grant date 5 December 2008 (Executives+Z3 level employees) | H30: 0.5 | I30: =J473 -> 0
A31: =+A476 -> Share options - Grant date 16 November 2009 (Executives) - JSE measurement | H31: 0.5 | I31: =+J485 -> 0
A32: =+A487 -> Share options - Grant date 16 November 2009 (Executives) - Production measurement | H32: 0.5 | I32: =+J496 -> 28824.86553
A33: =+A500 -> Share options - Grant date 16 November 2009 (Executives) - Australia- JSE measurement | H33: 0.5 | I33: =+J509 -> 0
A34: =+A511 -> Share options - Grant date 16 November 2009 (Executives) - Australia - Production measurement | H34: 0.5 | I34: =+J520 -> 3328.51822
A35: =+A524 -> Share options - Grant date 15 November 2010 (SA Management) - JSE measurement | H35: 0.5 | I35: =+J533 -> 0
A36: =+A535 -> Share options - Grant date 15 November 2010 (SA Management) - Production measurement | H36: 0.5 | I36: =+J544 -> 0
A37: =+A546 -> Share options - Grant date 15 November 2010 (Executives) - Australia- JSE measurement | H37: 0.5 | I37: =+J555 -> 0
A38: =+A557 -> Share options - Grant date 15 November 2010 (Executives) - Australia - Production measurement | H38: 0.5 | I38: =+J566 -> 0
A39: =+A568 -> Share options - Grant date 15 November 2010 (Executives) - Australia- Matching PR shares (JSE measurement) | H39: 0.5 | I39: =+J577 -> 0
A40: =+A579 -> Share options - Grant date 15 November 2010 (Executives) - Australia - Matching PR shares (Production measurement) | H40: 0.5 | I40: =+J588 -> 0
A41: =+A590 -> Share options - Grant date 15 Novemebr 2010 (Australia) - Restricted PR shares | H41: 0.5 | I41: =+H599 -> 207.2302225
A42: =+A602 -> Share options - Grant date 15 November 2010 (Management) - Australia- JSE measurement | H42: 0.5 | I42: =+J611 -> 0
A43: =+A613 -> Share options - Grant date 15 November 2010 (Executives) - Australia - Production measurement | H43: 0.5 | I43: =+J622 -> 0
A44: =+A624 -> Share options - Grant date 15 November 2010 (SA Executives) - JSE measurement | H44: 0.5 | I44: =+J633 -> 0
A45: =+A635 -> Share options - Grant date 15 November 2010 (SA Executives) - Production measurement | H45: 0.5 | I45: =+J644 -> 0
A46: =+A646 -> Share options - Grant date 15 November 2010 (SA Executives) - Matching PR shares (JSE measurement) | H46: 0.5 | I46: =+J655 -> 0
A47: =+A657 -> Share options - Grant date 15 November 2010 (SA Executives) - Matching PR shares (Production measurement) | H47: 0.5 | I47: =+J666 -> 0
A48: =+A668 -> Share options - Grant date 15 Novemebr 2010 (SA Executives) - Restricted PR shares | H48: 0.5 | I48: =+H677 -> 1169.508011
I49: =SUM(I25:I48) -> 33530.12198
A51: Old Share Scheme
A52: Date granted | H52: Share option price | I52: Dilutive
A53: =+A683 -> Share options - Grant date 24 April 2001 | H53: 36.5 | I53: =H692 -> 9364.956318
A54: =+A695 -> Share options - Grant date 20 November 2001 | H54: 49.6 | I54: =H704 -> 32032.41048
A55: =+A707 -> Share options - Grant date 27 March 2003 | H55: 91.6 | I55: =H716 -> 0
A56: =+A719 -> Share options - Grant date 10 August 2004 | H56: 66.15 | I56: =H728 -> 74514.04651
A57: =+A731 -> Share options - Grant date 26 April 2005 | H57: 39 | I57: =H746 -> 604074.5522
I58: =SUM(I53:I57) -> 719985.9655
A60: Dilution i.r.o. outstanding options | I60: =+I21+I49+I58 -> 834857.944
A62: CALCULATION OF THE DILUTION EFFECT OF SHARE OPTIONS (For the quarter)
A64: 2006 SHARE SCHEME
A66: SHARE APPRECIATION RIGHTS (SARS)
A68: Share options - Grant date 15 November 2006
A69: Grant date | B69: 2006-11-15
A70: Reporting date | B70: 2010-12-31
A71: Option price | B71: 112.64 | C71: A
A72: Option cost | B72: 43.68 | C72: B
A73: Average market price for quarter | B73: 81.27 | C73: C
A75: For SAR's to be considered in the calculation for dilutive shares, headline earnings per share (HEPS) to date should have increased by CPI puls 3%.
A77: 3yrs average HEPS before grant | B77: =#REF! ->  | C77: Cents
A78: 3yrs average HEPS after grant | B78: =#REF! ->  | C78: Cents
A79: CPI | B79: 0.036 | C79: Latest per Andisa report 31 December 2010
A80: CPI + 3% | B80: =(0.071+0.03)+(0.069+0.03)+(0.122+0.03) -> 0.352 | C80: Cummulative for 3 years | E80: Fixed on year 3
A81: HEPS | B81: =(B78-B77)/-B77 ->  | C81: =IF(B81<B80,"DO NOT CONSIDER SHARES IN THE CALC OF DILUTIVE SHARES.","CONSIDER SHARES IN THE CALC FOR DILUTIVE SHARES") -> 
A84: Vested options | B84: 185473
A85: Unvested options | B85: =B86-B84 -> 310929
A86: Total | B86: 496402
B88: D | C88: E | D88: F | E88: G(F/E*B) | F88: H(G+A) | G88: I(C-H) | H88: J(I*D/C)
A89: Vesting dates | B89: Shares | C89: Total days | D89: Remaining days | E89: Option cost portion | F89: Adjusted option price | G89: Dilution per share | H89: Total dilutive shares
A90: 2009-11-15 | B90: =B84 -> 185473 | C90: =A90-$B$69 -> 1096 | D90: 0 | E90: =D90/C90*$B$72 -> 0 | F90: =E90+$B$71 -> 112.64 | G90: =+$B$73-F90 -> -31.37 | H90: =IF(G90<0,0,G90*B90/$B$73) -> 0 | I90: =IF(G90<0,"The adjusted option price is higher than the market price, no dilution.","") -> The adjusted option price is higher than the market price, no dilution.
A91: 2010-11-15 | B91: 160796 | C91: =A91-$B$69 -> 1461 | D91: 0 | E91: 0 | F91: =E91+$B$71 -> 112.64 | G91: =+$B$73-F91 -> -31.37 | H91: =IF(G91<0,0,G91*B91/$B$73) -> 0 | I91: =IF(G91<0,"The adjusted option price is higher than the market price, no dilution.","") -> The adjusted option price is higher than the market price, no dilution.
A92: 2011-11-15 | B92: 150133 | C92: =A92-$B$69 -> 1826 | D92: =A92-$B$70 -> 319 | E92: =D92/C92*$B$72 -> 7.630843373 | F92: =E92+$B$71 -> 120.2708434 | G92: =+$B$73-F92 -> -39.00084337 | H92: =IF(G92<0,0,G92*B92/$B$73) -> 0 | I92: =IF(G92<0,"The adjusted option price is higher than the market price, no dilution.","") -> The adjusted option price is higher than the market price, no dilution.
B93: =SUM(B90:B92) -> 496402 | H93: =SUM(H90:H92) -> 0
B94: =B86-B93 -> 0
A96: Share options - Grant date 15 November 2007 (Management)
A97: Grant date | B97: 2007-11-15
A98: Reporting date | B98: =+B70 -> 2010-12-31
A99: Option price | B99: 70.54 | C99: A
A100: Option cost | B100: 58.34 | C100: B
A101: =A73 -> Average market price for quarter | B101: =+B73 -> 81.27 | C101: C
A103: For SAR's to be considered in the calculation for dilutive shares, headline earnings per share (HEPS) to date should have increased by CPI puls 3%.
A105: 3yrs average HEPS before grant | B105: =#REF! ->  | C105: Cents
A106: 3yrs average HEPS after grant | B106: =#REF! ->  | C106: Cents
A107: CPI | B107: =B79 -> 0.036 | C107: =C79 -> Latest per Andisa report 31 December 2010
A108: CPI + 3% | B108: =(0.046+0.03)+(0.122+0.03)+(0.069+0.03) -> 0.327 | C108: Cummulative for 3 years | E108: Fixed on year 3
A109: HEPS | B109: =(B106-B105)/-B105 ->  | C109: =IF(B109<B108,"DO NOT CONSIDER SHARES IN THE CALC OF DILUTIVE SHARES.","CONSIDER SHARES IN THE CALC FOR DILUTIVE SHARES") -> 
A111: Vested options | B111: =337381-7410 -> 329971
A112: Unvested options | B112: =B113-B111 -> 649275
A113: Total | B113: =986656-7410 -> 979246
B115: D | C115: E | D115: F | E115: G(F/E*B) | F115: H(G+A) | G115: I(C-H) | H115: J(I*D/C)
A116: Vesting dates | B116: Shares | C116: Total days | D116: Remaining days | E116: Option cost portion | F116: Adjusted option price | G116: Dilution per share | H116: Total dilutive shares
A117: 2010-11-15 | B117: =+B111 -> 329971 | C117: =A117-$B$97 -> 1096 | D117: 0 | E117: 0 | F117: =E117+$B$99 -> 70.54 | G117: =+$B$101-F117 -> 10.73 | H117: =IF(G117<0,0,G117*B117/$B$101) -> 43565.75403 | I117: =IF(G117<0,"The adjusted option price is higher than the market price, no dilution.","") -> 
A118: 2011-11-15 | B118: =+B112/2 -> 324637.5 | C118: =A118-$B$97 -> 1461 | D118: =A118-$B$98 -> 319 | E118: =D118/C118*$B$100 -> 12.73816564 | F118: =E118+$B$99 -> 83.27816564 | G118: =+$B$101-F118 -> -2.00816564 | H118: =IF(G118<0,0,G118*B118/$B$101) -> 0 | I118: =IF(G118<0,"The adjusted option price is higher than the market price, no dilution.","") -> The adjusted option price is higher than the market price, no dilution.
A119: 2012-11-15 | B119: =+B112/2 -> 324637.5 | C119: =A119-$B$97 -> 1827 | D119: =A119-$B$98 -> 685 | E119: =D119/C119*$B$100 -> 21.87350848 | F119: =E119+$B$99 -> 92.41350848 | G119: =+$B$101-F119 -> -11.14350848 | H119: =IF(G119<0,0,G119*B119/$B$101) -> 0 | I119: =IF(G119<0,"The adjusted option price is higher than the market price, no dilution.","") -> The adjusted option price is higher than the market price, no dilution.
B120: =+B113 -> 979246 | H120: =SUM(H117:H119) -> 43565.75403
A122: Share options - Grant date 15 November 2007 (Executive)
A123: Grant date | B123: 2007-11-15
A124: Current date | B124: =+B70 -> 2010-12-31
A125: Option price | B125: 70.54 | C125: A
A126: Option cost | B126: 34.97 | C126: B
A127: =A101 -> Average market price for quarter | B127: =+B73 -> 81.27 | C127: C
A129: For SAR's to be considered in the calculation for dilutive shares, headline earnings per share (HEPS) to date should have increased by CPI puls 3%.
A131: 3yrs average HEPS before grant | B131: =B105 ->  | C131: Cents
A132: 3yrs average HEPS after grant | B132: =B106 ->  | C132: Cents
A133: CPI | B133: =B107 -> 0.036 | C133: =C107 -> Latest per Andisa report 31 December 2010
A134: CPI + 3% | B134: =+B108 -> 0.327 | C134: Cummulative for 3 years | E134: Fixed on year 3
A135: HEPS | B135: =(B132-B131)/-B131 ->  | C135: =IF(B135<B134,"DO NOT CONSIDER SHARES IN THE CALC OF DILUTIVE SHARES.","CONSIDER SHARES IN THE CALC FOR DILUTIVE SHARES") -> 
A137: Vested options | B137: =226141-1776 -> 224365
A138: Unvested options | B138: =B139-B137 -> 428258
A139: Total | B139: =654399-1776 -> 652623
B141: D | C141: E | D141: F | E141: G(F/E*B) | F141: H(G+A) | G141: I(C-H) | H141: J(I*D/C)
A142: Vesting dates | B142: Shares | C142: Total days | D142: Remaining days | E142: Option cost portion | F142: Adjusted option price | G142: Dilution per share | H142: Total dilutive shares
A143: 2010-11-15 | B143: =+B137 -> 224365 | C143: =A143-$B$123 -> 1096 | D143: 0 | E143: 0 | F143: =E143+$B$125 -> 70.54 | G143: =+$B$127-F143 -> 10.73 | H143: =IF(G143<0,0,G143*B143/$B$127) -> 29622.69534 | I143: =IF(G143<0,"The adjusted option price is higher than the market price, no dilution.","") -> 
A144: 2011-11-15 | B144: =+B138/2 -> 214129 | C144: =A144-$B$123 -> 1461 | D144: =A144-$B$124 -> 319 | E144: =D144/C144*$B$126 -> 7.635475702 | F144: =E144+$B$125 -> 78.1754757 | G144: =+$B$127-F144 -> 3.094524298 | H144: =IF(G144<0,0,G144*B144/$B$127) -> 8153.407081 | I144: =IF(G144<0,"The adjusted option price is higher than the market price, no dilution.","") -> 
A145: 2012-11-15 | B145: =+B138/2 -> 214129 | C145: =A145-$B$123 -> 1827 | D145: =A145-$B$124 -> 685 | E145: =D145/C145*$B$126 -> 13.11135742 | F145: =E145+$B$125 -> 83.65135742 | G145: =+$B$127-F145 -> -2.381357417 | H145: =IF(G145<0,0,G145*B145/$B$127) -> 0 | I145: =IF(G145<0,"The adjusted option price is higher than the market price, no dilution.","") -> The adjusted option price is higher than the market price, no dilution.
B146: =+B139 -> 652623 | H146: =SUM(H143:H145) -> 37776.10242
A148: Share options - Grant date 7 March 2008
A149: Grant date | B149: 2008-03-07
A150: Current date | B150: =+B70 -> 2010-12-31
A151: Option price | B151: 102 | C151: A
A152: Option cost | B152: 72.89 | C152: B
A153: =A127 -> Average market price for quarter | B153: =+B73 -> 81.27 | C153: C
A155: For SAR's to be considered in the calculation for dilutive shares, headline earnings per share (HEPS) to date should have increased by CPI puls 3%.
A157: 3yrs average HEPS before grant | B157: =#REF! ->  | C157: Cents
A158: 3yrs average HEPS after grant | B158: =#REF! ->  | C158: Cents
A159: CPI | B159: =B133 -> 0.036 | C159: =C133 -> Latest per Andisa report 31 December 2010
A160: CPI + 3% | B160: =+B134 -> 0.327 | C160: Cummulative for 3 years | E160: Fixed on year 3
A161: HEPS | B161: =(B158-B157)/-B157 ->  | C161: =IF(B161<B160,"DO NOT CONSIDER SHARES IN THE CALC OF DILUTIVE SHARES.","CONSIDER SHARES IN THE CALC FOR DILUTIVE SHARES") -> 
B163: D | C163: E | D163: F | E163: G(F/E*B) | F163: H(G+A) | G163: I(C-H) | H163: J(I*D/C)
A164: Vesting dates | B164: Shares | C164: Total days | D164: Remaining days | E164: Option cost portion | F164: Adjusted option price | G164: Dilution per share | H164: Total dilutive shares
A165: 2011-03-07 | B165: =B168/3 -> 15384.66667 | C165: =A165-$B$149 -> 1095 | D165: =A165-$B$150 -> 66 | E165: =D165/C165*$B$152 -> 4.393369863 | F165: =E165+$B$151 -> 106.3933699 | G165: =+$B$153-F165 -> -25.12336986 | H165: =IF(G165<0,0,G165*B165/$B$153) -> 0 | I165: =IF(G165<0,"The adjusted option price is higher than the market price, no dilution.","") -> The adjusted option price is higher than the market price, no dilution.
A166: 2012-03-07 | B166: =B168/3 -> 15384.66667 | C166: =A166-$B$149 -> 1461 | D166: =A166-$B$150 -> 432 | E166: =D166/C166*$B$152 -> 21.55268994 | F166: =E166+$B$151 -> 123.5526899 | G166: =+$B$153-F166 -> -42.28268994 | H166: =IF(G166<0,0,G166*B166/$B$153) -> 0 | I166: =IF(G166<0,"The adjusted option price is higher than the market price, no dilution.","") -> The adjusted option price is higher than the market price, no dilution.
A167: 2013-03-07 | B167: =B168/3 -> 15384.66667 | C167: =A167-$B$149 -> 1826 | D167: =A167-$B$150 -> 797 | E167: =D167/C167*$B$152 -> 31.81452903 | F167: =E167+$B$151 -> 133.814529 | G167: =+$B$153-F167 -> -52.54452903 | H167: =IF(G167<0,0,G167*B167/$B$153) -> 0 | I167: =IF(G167<0,"The adjusted option price is higher than the market price, no dilution.","") -> The adjusted option price is higher than the market price, no dilution.
B168: 46154 | H168: =SUM(H165:H167) -> 0
A171: Share options - Grant date 5 December 2008 (Management)
A172: Grant date | B172: 2008-12-05
A173: Current date | B173: =+B124 -> 2010-12-31
A174: Option price | B174: 77.81 | C174: A
A175: Option cost | B175: 73.67 | C175: B
A176: =A153 -> Average market price for quarter | B176: =+B127 -> 81.27 | C176: C
A178: For SAR's to be considered in the calculation for dilutive shares, headline earnings per share (HEPS) to date should have increased by CPI.
A180: 3yrs average HEPS before grant | B180: =#REF! ->  | C180: Cents
A181: 3yrs average HEPS after grant | B181: =#REF! ->  | C181: Cents
A182: CPI | B182: =B159 -> 0.036 | C182: =C159 -> Latest per Andisa report 31 December 2010
A183: CPI | B183: =0.036+0.046+0.069 -> 0.151 | C183: Cummulative for 3 years
A184: HEPS | B184: =(B181-B180)/-B180 ->  | C184: =IF(B184<B183,"DO NOT CONSIDER SHARES IN THE CALC OF DILUTIVE SHARES.","CONSIDER SHARES IN THE CALC FOR DILUTIVE SHARES") -> 
B186: D | C186: E | D186: F | E186: G(F/E*B) | F186: H(G+A) | G186: I(C-H) | H186: J(I*D/C)
A187: Vesting dates | B187: Shares | C187: Total days | D187: Remaining days | E187: Option cost portion | F187: Adjusted option price | G187: Dilution per share | H187: Total dilutive shares
A188: 2011-12-05 | B188: =B191/3 -> 512033 | C188: =A188-$B$172 -> 1095 | D188: =A188-$B$173 -> 339 | E188: =D188/C188*$B$175 -> 22.80742466 | F188: =E188+$B$174 -> 100.6174247 | G188: =+$B$176-F188 -> -19.34742466 | H188: =IF(G188<0,0,G188*B188/$B$176) -> 0 | I188: =IF(G188<0,"The adjusted option price is higher than the market price, no dilution.","") -> The adjusted option price is higher than the market price, no dilution.
A189: 2012-12-05 | B189: =B191/3 -> 512033 | C189: =A189-$B$172 -> 1461 | D189: =A189-$B$173 -> 705 | E189: =D189/C189*$B$175 -> 35.54917864 | F189: =E189+$B$174 -> 113.3591786 | G189: =+$B$176-F189 -> -32.08917864 | H189: =IF(G189<0,0,G189*B189/$B$176) -> 0 | I189: =IF(G189<0,"The adjusted option price is higher than the market price, no dilution.","") -> The adjusted option price is higher than the market price, no dilution.
A190: 2013-12-05 | B190: =B191/3 -> 512033 | C190: =A190-$B$172 -> 1826 | D190: =A190-$B$173 -> 1070 | E190: =D190/C190*$B$175 -> 43.16916758 | F190: =E190+$B$174 -> 120.9791676 | G190: =+$B$176-F190 -> -39.70916758 | H190: =IF(G190<0,0,G190*B190/$B$176) -> 0 | I190: =IF(G190<0,"The adjusted option price is higher than the market price, no dilution.","") -> The adjusted option price is higher than the market price, no dilution.
B191: 1536099 | H191: =SUM(H188:H190) -> 0
A193: Share options - Grant date 5 December 2008 (Executives+Z3 level employees)
A194: Grant date | B194: 2008-12-05
A195: Current date | B195: =+B150 -> 2010-12-31
A196: Option price | B196: 77.81 | C196: A
A197: Option cost | B197: 48.12 | C197: B
A198: =A176 -> Average market price for quarter | B198: =+B153 -> 81.27 | C198: C
A200: For SAR's to be considered in the calculation for dilutive shares, headline earnings per share (HEPS) to date should have increased by CPI.
A202: 3yrs average HEPS before grant | B202: =B180 ->  | C202: Cents
A203: 3yrs average HEPS after grant | B203: =B181 ->  | C203: Cents
A204: CPI | B204: =B182 -> 0.036 | C204: =C182 -> Latest per Andisa report 31 December 2010
A205: CPI | B205: =+B183 -> 0.151 | C205: Cummulative for 3 years
A206: HEPS | B206: =(B203-B202)/-B202 ->  | C206: =IF(B206<B205,"DO NOT CONSIDER SHARES IN THE CALC OF DILUTIVE SHARES.","CONSIDER SHARES IN THE CALC FOR DILUTIVE SHARES") -> 
B208: D | C208: E | D208: F | E208: G(F/E*B) | F208: H(G+A) | G208: I(C-H) | H208: J(I*D/C)
A209: Vesting dates | B209: Shares | C209: Total days | D209: Remaining days | E209: Option cost portion | F209: Adjusted option price | G209: Dilution per share | H209: Total dilutive shares
A210: 2011-12-05 | B210: =B213/3 -> 100829.3333 | C210: =A210-$B$194 -> 1095 | D210: =A210-$B$195 -> 339 | E210: =D210/C210*$B$197 -> 14.89742466 | F210: =E210+$B$196 -> 92.70742466 | G210: =+$B$198-F210 -> -11.43742466 | H210: =IF(G210<0,0,G210*B210/$B$176) -> 0 | I210: =IF(G210<0,"The adjusted option price is higher than the market price, no dilution.","") -> The adjusted option price is higher than the market price, no dilution.
A211: 2012-12-05 | B211: =B213/3 -> 100829.3333 | C211: =A211-$B$194 -> 1461 | D211: =A211-$B$195 -> 705 | E211: =D211/C211*$B$197 -> 23.2201232 | F211: =E211+$B$196 -> 101.0301232 | G211: =+$B$198-F211 -> -19.7601232 | H211: =IF(G211<0,0,G211*B211/$B$176) -> 0 | I211: =IF(G211<0,"The adjusted option price is higher than the market price, no dilution.","") -> The adjusted option price is higher than the market price, no dilution.
A212: 2013-12-05 | B212: =B213/3 -> 100829.3333 | C212: =A212-$B$194 -> 1826 | D212: =A212-$B$195 -> 1070 | E212: =D212/C212*$B$197 -> 28.1973713 | F212: =E212+$B$196 -> 106.0073713 | G212: =+$B$198-F212 -> -24.7373713 | H212: =IF(G212<0,0,G212*B212/$B$176) -> 0 | I212: =IF(G212<0,"The adjusted option price is higher than the market price, no dilution.","") -> The adjusted option price is higher than the market price, no dilution.
B213: 302488 | H213: =SUM(H210:H212) -> 0
A216: Share options - Grant date 16 November 2009 (Management)
A217: Grant date | B217: 2009-11-16
A218: Current date | B218: =+B173 -> 2010-12-31
A219: Option price | B219: 77.28 | C219: A
A220: Option cost | B220: 44.52 | C220: B
A221: =A198 -> Average market price for quarter | B221: =+B176 -> 81.27 | C221: C
A223: For SAR's to be considered in the calculation for dilutive shares, headline earnings per share (HEPS) to date should have increased by CPI.
A225: 3yrs average HEPS before grant | B225: =#REF! ->  | C225: Cents
A226: 3yrs average HEPS after grant | B226: =#REF! ->  | C226: Cents
A227: CPI | B227: =B204 -> 0.036 | C227: =C204 -> Latest per Andisa report 31 December 2010
A228: CPI | B228: =B227*2+0.046 -> 0.118 | C228: Cummulative for 3 years
A229: HEPS | B229: =(B226-B225)/B225 ->  | C229: =IF(B229<B228,"DO NOT CONSIDER SHARES IN THE CALC OF DILUTIVE SHARES.","CONSIDER SHARES IN THE CALC FOR DILUTIVE SHARES") -> 
B231: D | C231: E | D231: F | E231: G(F/E*B) | F231: H(G+A) | G231: I(C-H) | H231: J(I*D/C)
A232: Vesting dates | B232: Shares | C232: Total days | D232: Remaining days | E232: Option cost portion | F232: Adjusted option price | G232: Dilution per share | H232: Total dilutive shares
A233: 2012-11-16 | B233: =B236/3 -> 663413.3333 | C233: =A233-$B$217 -> 1096 | D233: =A233-$B$218 -> 686 | E233: =D233/C233*$B$220 -> 27.86562044 | F233: =E233+$B$219 -> 105.1456204 | G233: =+$B$176-F233 -> -23.87562044 | H233: =IF(G233<0,0,G233*B233/$B$176) -> 0 | I233: =IF(G233<0,"The adjusted option price is higher than the market price, no dilution.","") -> The adjusted option price is higher than the market price, no dilution.
A234: 2013-11-16 | B234: =B236/3 -> 663413.3333 | C234: =A234-$B$217 -> 1461 | D234: =A234-$B$218 -> 1051 | E234: =D234/C234*$B$220 -> 32.0263655 | F234: =E234+$B$219 -> 109.3063655 | G234: =+$B$176-F234 -> -28.0363655 | H234: =IF(G234<0,0,G234*B234/$B$176) -> 0 | I234: =IF(G234<0,"The adjusted option price is higher than the market price, no dilution.","") -> The adjusted option price is higher than the market price, no dilution.
A235: 2014-11-16 | B235: =B236/3 -> 663413.3333 | C235: =A235-$B$217 -> 1826 | D235: =A235-$B$218 -> 1416 | E235: =D235/C235*$B$220 -> 34.52372399 | F235: =E235+$B$219 -> 111.803724 | G235: =+$B$176-F235 -> -30.53372399 | H235: =IF(G235<0,0,G235*B235/$B$176) -> 0 | I235: =IF(G235<0,"The adjusted option price is higher than the market price, no dilution.","") -> The adjusted option price is higher than the market price, no dilution.
B236: 1990240 | H236: =SUM(H233:H235) -> 0
A238: Share options - Grant date 16 November 2009 (Management) - Australia
A239: Grant date | B239: 2009-11-16
A240: Current date | B240: =+B195 -> 2010-12-31
A241: Option price | B241: 77.28 | C241: A
A242: Option cost | B242: 39.26 | C242: B
A243: =A221 -> Average market price for quarter | B243: =+B198 -> 81.27 | C243: C
... 391 more rows

Sheet WS - Diluted shares - SEPT10YTD (hidden)
A1: YEAR TO DATE - 31 December 2010
A3: SUMMARY FOR DILUTION SHARES ON 31 December 2010 (Year to date)
A5: 2006 Share Scheme (Share Appreciation Rights)
A6: Date granted | H6: Share option price | I6: Dilutive
A7: =+A71 -> Share options - Grant date 15 November 2006 | H7: 112.64 | I7: =+H96 -> 0
A8: =+A99 -> Share options - Grant date 15 November 2007 (Management) | H8: 70.54 | I8: =+H123 -> 34625.81106
A9: =+A126 -> Share options - Grant date 15 November 2007 (Executive) | H9: 70.54 | I9: =+H151 -> 25267.96858
A10: =+A154 -> Share options - Grant date 7 March 2008 | H10: 102 | I10: =+H174 -> 0
A11: =+A177 -> Share options - Grant date 5 December 2008 (Management) | H11: 77.81 | I11: =H197 -> 0
A12: =+A199 -> Share options - Grant date 5 December 2008 (Executives+Z3 level employees) | H12: 77.81 | I12: =H219 -> 0
A13: =+A222 -> Share options - Grant date 16 November 2009 (Management) | H13: 77.28 | I13: =H242 -> 0
A14: =+A244 -> Share options - Grant date 16 November 2009 (Management) - Australia | H14: 77.28 | I14: =H264 -> 0
A15: =+A267 -> Share options - Grant date 16 November 2009 (Executives) | H15: 77.28 | I15: =H287 -> 0
A16: =+A290 -> Share options - Grant date 16 November 2009 (Executives) - Australia | H16: 77.28 | I16: =H310 -> 0
A17: =+A313 -> Share options - Grant date 15 November 2010 (Management) | H17: =+B316 -> 84.81 | I17: =+H333 -> 0
A18: =+A335 -> Share options - Grant date 15 November 2010 (Executives) - Australia | H18: =+B338 -> 84.81 | I18: =+H355 -> 0
A19: =+A357 -> Share options - Grant date 15 November 2010 (Management) - Australia | H19: =+B360 -> 84.81 | I19: =+H377 -> 0
A20: =+A380 -> Share options - Grant date 15 November 2010 SA Executives | H20: =+B383 -> 84.81 | I20: =+H400 -> 0
I21: =SUM(I7:I16) -> 59893.77964
A23: 2006 Share Scheme (Performance Shares)
A24: Date granted | H24: Share option price | I24: Dilutive
A25: =+A406 -> Share options - Grant date 15 November 2006 | H25: 0.5 | I25: =J415 -> 0
A26: =+A418 -> Share options - Grant date 15 November 2007 (Management) | H26: 0.5 | I26: =J427 -> 0
A27: =+A430 -> Share options - Grant date 15 November 2007 (Executive) | H27: 0.5 | I27: =J439 -> 0
A28: =+A442 -> Share options - Grant date 7 March 2008 | H28: 0.5 | I28: =J451 -> 0
A29: =+A454 -> Share options - Grant date 5 December 2008 (Management) | H29: 0.5 | I29: =J463 -> 0
A30: =+A466 -> Share options - Grant date 5 December 2008 (Executives+Z3 level employees) | H30: 0.5 | I30: =J475 -> 0
A31: =+A478 -> Share options - Grant date 16 November 2009 (Executives) - JSE measurement | H31: 0.5 | I31: =+J487 -> 0
A32: =+A489 -> Share options - Grant date 16 November 2009 (Executives) - Production measurement | H32: 0.5 | I32: =+J498 -> 27671.57154
A33: =+A503 -> Share options - Grant date 16 November 2009 (Executives) - Australia- JSE measurement | H33: 0.5 | I33: =+J512 -> 0
A34: =+A514 -> Share options - Grant date 16 November 2009 (Executives) - Australia - Production measurement | H34: 0.5 | I34: =+J523 -> 3195.342923
A35: =+A527 -> Share options - Grant date 15 November 2010 (SA Management) - JSE measurement | H35: 0.5 | I35: =+J536 -> 0
A36: =+A538 -> Share options - Grant date 15 November 2010 (SA Management) - Production measurement | H36: 0.5 | I36: =+J547 -> 0
A37: =+A549 -> Share options - Grant date 15 November 2010 (Executives) - Australia- JSE measurement | H37: 0.5 | I37: =+J569 -> 0
A38: =+A560 -> Share options - Grant date 15 November 2010 (Executives) - Australia - Production measurement | H38: 0.5 | I38: =+J580 -> 0
A39: =+A571 -> Share options - Grant date 15 November 2010 (Executives) - Australia- Matching PR shares (JSE measurement) | H39: 0.5 | I39: =+J591 -> 0
A40: =+A582 -> Share options - Grant date 15 November 2010 (Executives) - Australia - Matching PR shares (Production measurement) | H40: 0.5 | I40: =+H602 -> 0
A41: =+A593 -> Share options - Grant date 15 Novemebr 2010 (Australia) - Restricted PR shares | H41: 0.5 | I41: =+J614 -> 0
A42: =+A605 -> Share options - Grant date 15 November 2010 (Management) - Australia- JSE measurement | H42: 0.5 | I42: =+J625 -> 0
A43: =+A616 -> Share options - Grant date 15 November 2010 (Executives) - Australia - Production measurement | H43: 0.5 | I43: =+J636 -> 0
A44: =+A627 -> Share options - Grant date 15 November 2010 (SA Executives) - JSE measurement | H44: 0.5 | I44: =+J647 -> 0
A45: =+A638 -> Share options - Grant date 15 November 2010 (SA Executives) - Production measurement | H45: 0.5 | I45: =+J658 -> 0
A46: =+A660 -> Share options - Grant date 15 November 2010 (SA Executives) - Matching PR shares (Production measurement) | H46: 0.5 | I46: =+J669 -> 0
A47: =+A671 -> Share options - Grant date 15 Novemebr 2010 (SA Executives - Restricted PR shares | H47: 0.5 | I47: =+H680 -> 0
I48: =SUM(I25:I34) -> 30866.91447
A52: Old Share Scheme
A53: Date granted | H53: Share option price | I53: Dilutive
A54: =+A686 -> Share options - Grant date 24 April 2001 | H54: 36.5 | I54: =H695 -> 9126.633676
A55: =+A698 -> Share options - Grant date 20 November 2001 | H55: 49.6 | I55: =H707 -> 30466.46365
A56: =+A710 -> Share options - Grant date 27 March 2003 | H56: 91.6 | I56: =H719 -> 0
A57: =+A722 -> Share options - Grant date 10 August 2004 | H57: 66.15 | I57: =H731 -> 64338.21317
A58: =+A734 -> Share options - Grant date 26 April 2005 | H58: 39 | I58: =H749 -> 586677.4595
I59: =SUM(I54:I58) -> 690608.77
A61: Dilution i.r.o. outstanding options | I61: =+I21+I48+I59 -> 781369.4641
A65: CALCULATION OF THE DILUTION EFFECT OF SHARE OPTIONS (Year to date)
A67: 2006 SHARE SCHEME
A69: SHARE APPRECIATION RIGHTS (SARS)
A71: Share options - Grant date 15 November 2006
A72: Grant date | B72: 2006-11-15
A73: Reporting date | B73: 2010-12-31
A74: Option price | B74: 112.64 | C74: A
A75: Option cost | B75: 43.68 | C75: B
A76: YTD Average price | B76: 78.81 | C76: C
A78: For SAR's to be considered in the calculation for dilutive shares, headline earnings per share (HEPS) to date should have increased by CPIX puls 3%.
A80: 3yrs average HEPS before grant | B80: =#REF! ->  | C80: Cents
A81: 3yrs average HEPS after grant | B81: =#REF! ->  | C81: Cents
A82: CPIX | B82: 0.036 | C82: Latest per STASSA report August 2010
A83: CPIX + 3% | B83: 0.352 | C83: Cummulative for 3 years | E83: Fixed on year 3
A84: HEPS | B84: =(B81-B80)/-B80 ->  | C84: =IF(B84<B83,"DO NOT CONSIDER SHARES IN THE CALC OF DILUTIVE SHARES.","CONSIDER SHARES IN THE CALC FOR DILUTIVE SHARES") -> 
A87: Vested options | B87: 185473
A88: Unvested options | B88: =B89-B87 -> 310929
A89: Total | B89: ='WS - Diluted shares - SEPT10qtd'!B86 -> 496402
B91: D | C91: E | D91: F | E91: G(F/E*B) | F91: H(G+A) | G91: I(C-H) | H91: J(I*D/C)
A92: Vesting dates | B92: Shares | C92: Total days | D92: Remaining days | E92: Option cost portion | F92: Adjusted option price | G92: Dilution per share | H92: Total dilutive shares
A93: 2009-11-15 | B93: =+'WS - Diluted shares - SEPT10qtd'!B90 -> 185473 | C93: =A93-$B$72 -> 1096 | D93: 0 | E93: =D93/C93*$B$75 -> 0 | F93: =E93+$B$74 -> 112.64 | G93: =+$B$76-F93 -> -33.83 | H93: =IF(G93<0,0,G93*B93/$B$76) -> 0 | I93: =IF(G93<0,"The adjusted option price is higher than the market price, no dilution.","") -> The adjusted option price is higher than the market price, no dilution.
A94: 2010-11-15 | B94: =+'WS - Diluted shares - SEPT10qtd'!B91 -> 160796 | C94: =A94-$B$72 -> 1461 | D94: 0 | E94: 0 | F94: =E94+$B$74 -> 112.64 | G94: =+$B$76-F94 -> -33.83 | H94: =IF(G94<0,0,G94*B94/$B$76) -> 0 | I94: =IF(G94<0,"The adjusted option price is higher than the market price, no dilution.","") -> The adjusted option price is higher than the market price, no dilution.
A95: 2011-11-15 | B95: =+'WS - Diluted shares - SEPT10qtd'!B92 -> 150133 | C95: =A95-$B$72 -> 1826 | D95: =A95-$B$73 -> 319 | E95: =D95/C95*$B$75 -> 7.630843373 | F95: =E95+$B$74 -> 120.2708434 | G95: =+$B$76-F95 -> -41.46084337 | H95: =IF(G95<0,0,G95*B95/$B$76) -> 0 | I95: =IF(G95<0,"The adjusted option price is higher than the market price, no dilution.","") -> The adjusted option price is higher than the market price, no dilution.
B96: =SUM(B93:B95) -> 496402 | H96: =SUM(H93:H95) -> 0
B97: =B89-B96 -> 0
A99: Share options - Grant date 15 November 2007 (Management)
A100: Grant date | B100: 2007-11-15
A101: Reporting date | B101: =+B73 -> 2010-12-31
A102: Option price | B102: 70.54 | C102: A
A103: Option cost | B103: 58.34 | C103: B
A104: YTD Average price | B104: =+B76 -> 78.81 | C104: C
A106: For SAR's to be considered in the calculation for dilutive shares, headline earnings per share (HEPS) to date should have increased by CPIX puls 3%.
A108: 3yrs average HEPS before grant | B108: =#REF! ->  | C108: Cents
A109: 3yrs average HEPS after grant | B109: =#REF! ->  | C109: Cents
A110: CPIX | B110: =B82 -> 0.036 | C110: =C82 -> Latest per STASSA report August 2010
A111: CPIX + 3% | B111: =+'WS - Diluted shares - SEPT10qtd'!B108 -> 0.327 | C111: Cummulative for 3 years | E111: Fixed on year 3
A112: HEPS | B112: =(B109-B108)/-B108 ->  | C112: =IF(B112<B111,"DO NOT CONSIDER SHARES IN THE CALC OF DILUTIVE SHARES.","CONSIDER SHARES IN THE CALC FOR DILUTIVE SHARES") -> 
A114: Vested options | B114: =+'WS - Diluted shares - SEPT10qtd'!B111 -> 329971
A115: Unvested options | B115: =B116-B114 -> 649275
A116: Total | B116: =+'WS - Diluted shares - SEPT10qtd'!B113 -> 979246
B118: D | C118: E | D118: F | E118: G(F/E*B) | F118: H(G+A) | G118: I(C-H) | H118: J(I*D/C)
A119: Vesting dates | B119: Shares | C119: Total days | D119: Remaining days | E119: Option cost portion | F119: Adjusted option price | G119: Dilution per share | H119: Total dilutive shares
A120: 2010-11-15 | B120: =+'WS - Diluted shares - SEPT10qtd'!B117 -> 329971 | C120: =A120-$B$100 -> 1096 | D120: 0 | E120: =D120/C120*$B$103 -> 0 | F120: =E120+$B$102 -> 70.54 | G120: =+$B$104-F120 -> 8.27 | H120: =IF(G120<0,0,G120*B120/$B$104) -> 34625.81106 | I120: =IF(G120<0,"The adjusted option price is higher than the market price, no dilution.","") -> 
A121: 2011-11-15 | B121: =+'WS - Diluted shares - SEPT10qtd'!B118 -> 324637.5 | C121: =A121-$B$100 -> 1461 | D121: =A121-$B$101 -> 319 | E121: =D121/C121*$B$103 -> 12.73816564 | F121: =E121+$B$102 -> 83.27816564 | G121: =+$B$104-F121 -> -4.46816564 | H121: =IF(G121<0,0,G121*B121/$B$104) -> 0 | I121: =IF(G121<0,"The adjusted option price is higher than the market price, no dilution.","") -> The adjusted option price is higher than the market price, no dilution.
A122: 2012-11-15 | B122: =+'WS - Diluted shares - SEPT10qtd'!B119 -> 324637.5 | C122: =A122-$B$100 -> 1827 | D122: =A122-$B$101 -> 685 | E122: =D122/C122*$B$103 -> 21.87350848 | F122: =E122+$B$102 -> 92.41350848 | G122: =+$B$104-F122 -> -13.60350848 | H122: =IF(G122<0,0,G122*B122/$B$104) -> 0 | I122: =IF(G122<0,"The adjusted option price is higher than the market price, no dilution.","") -> The adjusted option price is higher than the market price, no dilution.
B123: =SUM(B120:B122) -> 979246 | H123: =SUM(H120:H122) -> 34625.81106
A126: Share options - Grant date 15 November 2007 (Executive)
A127: Grant date | B127: 2007-11-15
A128: Current date | B128: =+B73 -> 2010-12-31
A129: Option price | B129: 70.54 | C129: A
A130: Option cost | B130: 34.97 | C130: B
A131: YTD Average price | B131: =+B76 -> 78.81 | C131: C
A133: For SAR's to be considered in the calculation for dilutive shares, headline earnings per share (HEPS) to date should have increased by CPIX puls 3%.
A135: 3yrs average HEPS before grant | B135: =B108 ->  | C135: Cents
A136: 3yrs average HEPS after grant | B136: =B109 ->  | C136: Cents
A137: CPIX | B137: =B110 -> 0.036 | C137: =C110 -> Latest per STASSA report August 2010
A138: CPIX + 3% | B138: =+'WS - Diluted shares - SEPT10qtd'!B134 -> 0.327 | C138: Cummulative for 3 years | E138: Fixed on year 3
A139: HEPS | B139: =(B136-B135)/-B135 ->  | C139: =IF(B139<B138,"DO NOT CONSIDER SHARES IN THE CALC OF DILUTIVE SHARES.","CONSIDER SHARES IN THE CALC FOR DILUTIVE SHARES") -> 
A141: Vested options | B141: =+'WS - Diluted shares - SEPT10qtd'!B137 -> 224365
A142: Unvested options | B142: =B143-B141 -> 428258
A143: Total | B143: =+'WS - Diluted shares - SEPT10qtd'!B139 -> 652623
B146: D | C146: E | D146: F | E146: G(F/E*B) | F146: H(G+A) | G146: I(C-H) | H146: J(I*D/C)
A147: Vesting dates | B147: Shares | C147: Total days | D147: Remaining days | E147: Option cost portion | F147: Adjusted option price | G147: Dilution per share | H147: Total dilutive shares
A148: 2010-11-15 | B148: =+'WS - Diluted shares - SEPT10qtd'!B143 -> 224365 | C148: =A148-$B$127 -> 1096 | D148: 0 | E148: =D148/C148*$B$130 -> 0 | F148: =E148+$B$129 -> 70.54 | G148: =+$B$131-F148 -> 8.27 | H148: =IF(G148<0,0,G148*B148/$B$131) -> 23543.9481 | I148: =IF(G148<0,"The adjusted option price is higher than the market price, no dilution.","") -> 
A149: 2011-11-15 | B149: =+'WS - Diluted shares - SEPT10qtd'!B144 -> 214129 | C149: =A149-$B$127 -> 1461 | D149: =A149-$B$128 -> 319 | E149: =D149/C149*$B$130 -> 7.635475702 | F149: =E149+$B$129 -> 78.1754757 | G149: =+$B$131-F149 -> 0.6345242984 | H149: =IF(G149<0,0,G149*B149/$B$131) -> 1724.020473 | I149: =IF(G149<0,"The adjusted option price is higher than the market price, no dilution.","") -> 
A150: 2012-11-15 | B150: =+'WS - Diluted shares - SEPT10qtd'!B145 -> 214129 | C150: =A150-$B$127 -> 1827 | D150: =A150-$B$128 -> 685 | E150: =D150/C150*$B$130 -> 13.11135742 | F150: =E150+$B$129 -> 83.65135742 | G150: =+$B$131-F150 -> -4.841357417 | H150: =IF(G150<0,0,G150*B150/$B$131) -> 0 | I150: =IF(G150<0,"The adjusted option price is higher than the market price, no dilution.","") -> The adjusted option price is higher than the market price, no dilution.
B151: ='WS - Diluted shares - SEPT10qtd'!B146 -> 652623 | H151: =SUM(H148:H150) -> 25267.96858
A154: Share options - Grant date 7 March 2008
A155: Grant date | B155: 2008-03-07
A156: Current date | B156: =+B73 -> 2010-12-31
A157: Option price | B157: 102 | C157: A
A158: Option cost | B158: 72.89 | C158: B
A159: YTD Average price | B159: =+B76 -> 78.81 | C159: C
A161: For SAR's to be considered in the calculation for dilutive shares, headline earnings per share (HEPS) to date should have increased by CPIX puls 3%.
A163: 3yrs average HEPS before grant | B163: =#REF! ->  | C163: Cents
A164: 3yrs average HEPS after grant | B164: =#REF! ->  | C164: Cents
A165: CPIX | B165: =B137 -> 0.036 | C165: =C137 -> Latest per STASSA report August 2010
A166: CPIX + 3% | B166: =+'WS - Diluted shares - SEPT10qtd'!B160 -> 0.327 | C166: Cummulative for 3 years | E166: Fixed on year 3
A167: HEPS | B167: =(B164-B163)/-B163 ->  | C167: =IF(B167<B166,"DO NOT CONSIDER SHARES IN THE CALC OF DILUTIVE SHARES.","CONSIDER SHARES IN THE CALC FOR DILUTIVE SHARES") -> 
B169: D | C169: E | D169: F | E169: G(F/E*B) | F169: H(G+A) | G169: I(C-H) | H169: J(I*D/C)
A170: Vesting dates | B170: Shares | C170: Total days | D170: Remaining days | E170: Option cost portion | F170: Adjusted option price | G170: Dilution per share | H170: Total dilutive shares
A171: 2011-03-07 | B171: =+'WS - Diluted shares - SEPT10qtd'!B165 -> 15384.66667 | C171: =A171-$B$155 -> 1095 | D171: =A171-$B$156 -> 66 | E171: =D171/C171*$B$158 -> 4.393369863 | F171: =E171+$B$157 -> 106.3933699 | G171: =+$B$159-F171 -> -27.58336986 | H171: =IF(G171<0,0,G171*B171/$B$159) -> 0 | I171: =IF(G171<0,"The adjusted option price is higher than the market price, no dilution.","") -> The adjusted option price is higher than the market price, no dilution.
A172: 2012-03-07 | B172: =+'WS - Diluted shares - SEPT10qtd'!B166 -> 15384.66667 | C172: =A172-$B$155 -> 1461 | D172: =A172-$B$156 -> 432 | E172: =D172/C172*$B$158 -> 21.55268994 | F172: =E172+$B$157 -> 123.5526899 | G172: =+$B$159-F172 -> -44.74268994 | H172: =IF(G172<0,0,G172*B172/$B$159) -> 0 | I172: =IF(G172<0,"The adjusted option price is higher than the market price, no dilution.","") -> The adjusted option price is higher than the market price, no dilution.
A173: 2013-03-07 | B173: =+'WS - Diluted shares - SEPT10qtd'!B167 -> 15384.66667 | C173: =A173-$B$155 -> 1826 | D173: =A173-$B$156 -> 797 | E173: =D173/C173*$B$158 -> 31.81452903 | F173: =E173+$B$157 -> 133.814529 | G173: =+$B$159-F173 -> -55.00452903 | H173: =IF(G173<0,0,G173*B173/$B$159) -> 0 | I173: =IF(G173<0,"The adjusted option price is higher than the market price, no dilution.","") -> The adjusted option price is higher than the market price, no dilution.
B174: ='WS - Diluted shares - SEPT10qtd'!B168 -> 46154 | H174: =SUM(H171:H173) -> 0
A177: Share options - Grant date 5 December 2008 (Management)
A178: Grant date | B178: 2008-12-05
A179: Current date | B179: =+B128 -> 2010-12-31
A180: Option price | B180: 77.81 | C180: A
A181: Option cost | B181: 73.67 | C181: B
A182: YTD Average price | B182: =+B131 -> 78.81 | C182: C
A184: For SAR's to be considered in the calculation for dilutive shares, headline earnings per share (HEPS) to date should have increased by CPIX.
A186: 3yrs average HEPS before grant | B186: =#REF! ->  | C186: Cents
A187: 3yrs average HEPS after grant | B187: =#REF! ->  | C187: Cents
A188: CPIX | B188: =B165 -> 0.036 | C188: =C165 -> Latest per STASSA report August 2010
A189: CPIX | B189: =+'WS - Diluted shares - SEPT10qtd'!B183 -> 0.151 | C189: Cummulative for 3 years
A190: HEPS | B190: =(B187-B186)/-B186 ->  | C190: =IF(B190<B189,"DO NOT CONSIDER SHARES IN THE CALC OF DILUTIVE SHARES.","CONSIDER SHARES IN THE CALC FOR DILUTIVE SHARES") -> 
B192: D | C192: E | D192: F | E192: G(F/E*B) | F192: H(G+A) | G192: I(C-H) | H192: J(I*D/C)
A193: Vesting dates | B193: Shares | C193: Total days | D193: Remaining days | E193: Option cost portion | F193: Adjusted option price | G193: Dilution per share | H193: Total dilutive shares
A194: 2011-12-05 | B194: =+'WS - Diluted shares - SEPT10qtd'!B188 -> 512033 | C194: =A194-$B$178 -> 1095 | D194: =A194-$B$179 -> 339 | E194: =D194/C194*$B$181 -> 22.80742466 | F194: =E194+$B$180 -> 100.6174247 | G194: =+$B$182-F194 -> -21.80742466 | H194: =IF(G194<0,0,G194*B194/$B$182) -> 0 | I194: =IF(G194<0,"The adjusted option price is higher than the market price, no dilution.","") -> The adjusted option price is higher than the market price, no dilution.
A195: 2012-12-05 | B195: =+'WS - Diluted shares - SEPT10qtd'!B189 -> 512033 | C195: =A195-$B$178 -> 1461 | D195: =A195-$B$179 -> 705 | E195: =D195/C195*$B$181 -> 35.54917864 | F195: =E195+$B$180 -> 113.3591786 | G195: =+$B$182-F195 -> -34.54917864 | H195: =IF(G195<0,0,G195*B195/$B$182) -> 0 | I195: =IF(G195<0,"The adjusted option price is higher than the market price, no dilution.","") -> The adjusted option price is higher than the market price, no dilution.
A196: 2013-12-05 | B196: =+'WS - Diluted shares - SEPT10qtd'!B190 -> 512033 | C196: =A196-$B$178 -> 1826 | D196: =A196-$B$179 -> 1070 | E196: =D196/C196*$B$181 -> 43.16916758 | F196: =E196+$B$180 -> 120.9791676 | G196: =+$B$182-F196 -> -42.16916758 | H196: =IF(G196<0,0,G196*B196/$B$182) -> 0 | I196: =IF(G196<0,"The adjusted option price is higher than the market price, no dilution.","") -> The adjusted option price is higher than the market price, no dilution.
B197: ='WS - Diluted shares - SEPT10qtd'!B191 -> 1536099 | H197: =SUM(H194:H196) -> 0
A199: Share options - Grant date 5 December 2008 (Executives+Z3 level employees)
A200: Grant date | B200: 2008-12-05
A201: Current date | B201: =B179 -> 2010-12-31
A202: Option price | B202: 77.81 | C202: A
A203: Option cost | B203: 48.12 | C203: B
A204: YTD Average price | B204: =B104 -> 78.81 | C204: C
A206: For SAR's to be considered in the calculation for dilutive shares, headline earnings per share (HEPS) to date should have increased by CPIX.
A208: 3yrs average HEPS before grant | B208: =B186 ->  | C208: Cents
A209: 3yrs average HEPS after grant | B209: =B187 ->  | C209: Cents
A210: CPIX | B210: =B188 -> 0.036 | C210: =C188 -> Latest per STASSA report August 2010
A211: CPIX | B211: =+'WS - Diluted shares - SEPT10qtd'!B205 -> 0.151 | C211: Cummulative for 3 years
A212: HEPS | B212: =(B209-B208)/-B208 ->  | C212: =IF(B212<B211,"DO NOT CONSIDER SHARES IN THE CALC OF DILUTIVE SHARES.","CONSIDER SHARES IN THE CALC FOR DILUTIVE SHARES") -> 
B214: D | C214: E | D214: F | E214: G(F/E*B) | F214: H(G+A) | G214: I(C-H) | H214: J(I*D/C)
A215: Vesting dates | B215: Shares | C215: Total days | D215: Remaining days | E215: Option cost portion | F215: Adjusted option price | G215: Dilution per share | H215: Total dilutive shares
A216: 2011-12-05 | B216: =+'WS - Diluted shares - SEPT10qtd'!B210 -> 100829.3333 | C216: =A216-$B$200 -> 1095 | D216: =A216-$B$201 -> 339 | E216: =D216/C216*$B$203 -> 14.89742466 | F216: =E216+$B$202 -> 92.70742466 | G216: =+$B$204-F216 -> -13.89742466 | H216: =IF(G216<0,0,G216*B216/$B$204) -> 0 | I216: =IF(G216<0,"The adjusted option price is higher than the market price, no dilution.","") -> The adjusted option price is higher than the market price, no dilution.
A217: 2012-12-05 | B217: =+'WS - Diluted shares - SEPT10qtd'!B211 -> 100829.3333 | C217: =A217-$B$200 -> 1461 | D217: =A217-$B$201 -> 705 | E217: =D217/C217*$B$203 -> 23.2201232 | F217: =E217+$B$202 -> 101.0301232 | G217: =+$B$204-F217 -> -22.2201232 | H217: =IF(G217<0,0,G217*B217/$B$204) -> 0 | I217: =IF(G217<0,"The adjusted option price is higher than the market price, no dilution.","") -> The adjusted option price is higher than the market price, no dilution.
A218: 2013-12-05 | B218: =+'WS - Diluted shares - SEPT10qtd'!B212 -> 100829.3333 | C218: =A218-$B$200 -> 1826 | D218: =A218-$B$201 -> 1070 | E218: =D218/C218*$B$203 -> 28.1973713 | F218: =E218+$B$202 -> 106.0073713 | G218: =+$B$204-F218 -> -27.1973713 | H218: =IF(G218<0,0,G218*B218/$B$204) -> 0 | I218: =IF(G218<0,"The adjusted option price is higher than the market price, no dilution.","") -> The adjusted option price is higher than the market price, no dilution.
B219: ='WS - Diluted shares - SEPT10qtd'!B213 -> 302488 | H219: =SUM(H216:H218) -> 0
A222: Share options - Grant date 16 November 2009 (Management)
A223: Grant date | B223: 2009-11-16
A224: Current date | B224: =B73 -> 2010-12-31
A225: Option price | B225: 77.28 | C225: A
A226: Option cost | B226: 44.52 | C226: B
A227: YTD Average price | B227: =B204 -> 78.81 | C227: C
A229: For SAR's to be considered in the calculation for dilutive shares, headline earnings per share (HEPS) to date should have increased by CPIX.
A231: 3yrs average HEPS before grant | B231: =#REF! ->  | C231: Cents
A232: 3yrs average HEPS after grant | B232: =#REF! ->  | C232: Cents
A233: CPIX | B233: =B210 -> 0.036 | C233: =C210 -> Latest per STASSA report August 2010
A234: CPIX | B234: =B233*2+0.046 -> 0.118 | C234: Cummulative for 3 years
A235: HEPS | B235: =(B232-B231)/B231 ->  | C235: =IF(B235<B234,"DO NOT CONSIDER SHARES IN THE CALC OF DILUTIVE SHARES.","CONSIDER SHARES IN THE CALC FOR DILUTIVE SHARES") -> 
B237: D | C237: E | D237: F | E237: G(F/E*B) | F237: H(G+A) | G237: I(C-H) | H237: J(I*D/C)
A238: Vesting dates | B238: Shares | C238: Total days | D238: Remaining days | E238: Option cost portion | F238: Adjusted option price | G238: Dilution per share | H238: Total dilutive shares
A239: 2012-11-16 | B239: =+'WS - Diluted shares - SEPT10qtd'!B233 -> 663413.3333 | C239: =A239-$B$223 -> 1096 | D239: =A239-$B$224 -> 686 | E239: =D239/C239*$B$226 -> 27.86562044 | F239: =E239+$B$225 -> 105.1456204 | G239: =+$B$227-F239 -> -26.33562044 | H239: =IF(G239<0,0,G239*B239/$B$227) -> 0 | I239: =IF(G239<0,"The adjusted option price is higher than the market price, no dilution.","") -> The adjusted option price is higher than the market price, no dilution.
A240: 2013-11-16 | B240: =+'WS - Diluted shares - SEPT10qtd'!B234 -> 663413.3333 | C240: =A240-$B$223 -> 1461 | D240: =A240-$B$224 -> 1051 | E240: =D240/C240*$B$226 -> 32.0263655 | F240: =E240+$B$225 -> 109.3063655 | G240: =+$B$227-F240 -> -30.4963655 | H240: =IF(G240<0,0,G240*B240/$B$227) -> 0 | I240: =IF(G240<0,"The adjusted option price is higher than the market price, no dilution.","") -> The adjusted option price is higher than the market price, no dilution.
A241: 2014-11-16 | B241: =+'WS - Diluted shares - SEPT10qtd'!B235 -> 663413.3333 | C241: =A241-$B$223 -> 1826 | D241: =A241-$B$224 -> 1416 | E241: =D241/C241*$B$226 -> 34.52372399 | F241: =E241+$B$225 -> 111.803724 | G241: =+$B$227-F241 -> -32.99372399 | H241: =IF(G241<0,0,G241*B241/$B$227) -> 0 | I241: =IF(G241<0,"The adjusted option price is higher than the market price, no dilution.","") -> The adjusted option price is higher than the market price, no dilution.
B242: ='WS - Diluted shares - SEPT10qtd'!B236 -> 1990240 | H242: =SUM(H239:H241) -> 0
A244: Share options - Grant date 16 November 2009 (Management) - Australia
A245: Grant date | B245: 2009-11-16
A246: Current date | B246: =+B201 -> 2010-12-31
A247: Option price | B247: 77.28 | C247: A
A248: Option cost | B248: 39.26 | C248: B
A249: YTD Average price | B249: =+B204 -> 78.81 | C249: C
A251: For SAR's to be considered in the calculation for dilutive shares, headline earnings per share (HEPS) to date should have increased by CPIX.
... 390 more rows
